Workbook

Sheet Calculadora
B1: 4 | C1: 2
A2: 1
A3: 2
A5: 5
A6: NIT: 12345
A7: carre 30 # 44-55 Medellin
A8: 3345520

Sheet Nomina
E1: ='D-basicos'!$B$5 -> 106454 | F1: ='D-basicos'!$B$4 -> 908526 | G1: ='D-basicos'!$C$40 -> 1.35 | H1: ='D-basicos'!$C$46 -> 2.1 | I1: ='D-basicos'!$C$41 -> 1.25 | J1: ='D-basicos'!$C$42 -> 1.75 | K1: ='D-basicos'!C44 -> 2 | L1: ='D-basicos'!$C$45 -> 2.5 | M1: ='D-basicos'!$C$43 -> 1.75 | N1: ='D-basicos'!$C$43 -> 1.75 | Q1: ='D-basicos'!$B$15 -> 0.04 | R1: ='D-basicos'!$B$16 -> 0.04 | S1: ='D-basicos'!$B$19 -> 0.01 | T1: ='D-basicos'!$B$20 -> 0.012 | U1: ='D-basicos'!$B$21 -> 0.014 | V1: ='D-basicos'!$B$22 -> 0.016 | W1: ='D-basicos'!$B$23 -> 0.018 | X1: ='D-basicos'!$B$4 -> 908526 | Y1: ='D-basicos'!$B$5 -> 106454 | Z1: ='D-basicos'!$B$8 -> 0.0833 | AA1: ='D-basicos'!$B$9 -> 0.0833 | AB1: ='D-basicos'!$C$10 -> 0.12 | AC1: ='D-basicos'!$C$15 -> 0.085 | AD1: ='D-basicos'!$C$16 -> 0.12 | AE1: ='D-basicos'!$B$49 -> 0.02 | AF1: ='D-basicos'!$B$50 -> 0.03 | AG1: ='D-basicos'!$B$51 -> 0.04 | AH1: ='D-basicos'!$C$28 -> 0.0052 | AI1: ='D-basicos'!$B$11 -> 0.0417 | AJ1: =Cesantias -> 386771.24 | AK1: =Prima -> 386771.24 | AL1: =Int -> 3867.7124 | AM1: =Salud -> 359018.75 | AN1: =Pension -> 506850 | AO1: =Sena -> 84475 | AP1: =Icbf -> 126712.5 | AQ1: =Caja -> 168950 | AR1: =Arp -> 21963.5 | AS1: ='D-basicos'!$C$15 -> 0.085 | AU1: =SUM(AJ1:AL1) -> 777410.1924 | AV1: =$AO$1+$AP$1+$AQ$1 -> 380137.5 | AW1: =SUM(AU1+AV1) -> 1157547.692 | AX1: =Vaca -> 176130.38 | AY1: =SUM(AM1:AN1)+$AR$1 -> 887832.25 | AZ1: =SUM(AO1:AQ1) -> 380137.5 | BA1: =($AX$1+$AL$1+$AK$1+$AJ$1) -> 953540.5724 | BB1: =($BA$1+$AZ$1+AY1) -> 2221510.322 | BC1: ='D-basicos'!$B$66 -> 2684000 | BD1: ='D-basicos'!$C$30 -> 31859 | BE1: ='D-basicos'!$C$70 -> 0.16 | BF1: ='D-basicos'!$D$70 -> 0.25 | BG1: ='D-basicos'!D72 -> 0.3 | BH1: ='D-basicos'!$B$72 -> 8500000 | BI1: ='D-basicos'!$B$66 -> 2684000 | BJ1: ='D-basicos'!$B$68 -> 858912 | BK1: ='D-basicos'!$D$68 -> 0.1 | BM1: ='D-basicos'!$B$73 -> 6442000 | BN1: ='D-basicos'!$D$73 -> 0.25 | BO1: ='D-basicos'!$D$75 -> 0.08 | BP1: ='D-basicos'!$C$77 -> 1100481 | BQ1: =SUM(F6,F7:F66) -> 3950000 | BR1: =SUM(G6,G7:G65) -> 409940 | BS1: =SUM(BB6,BB7:BB66) -> 33750 | BT1: =SUM(BC6:BC66) -> 240000 | BU1: =SUM(BI6:BI66) -> 83750 | BV1: =SUM(BL6:BL66) -> 0 | BW1: =SUM(P6:P66) -> 0 | BX1: =SUM(S6:S66) -> 168950 | BY1: =(BX1*2) -> 337900 | BZ1: =SUM(U6:U66) -> 0 | CA1: =SUM(AO6:AO66) -> 0 | CB1: =SUM(AL6:AL66) -> 0 | CC1: =SUM(AM6:AM66) -> 0 | CD1: =SUM(AN6:AN66) -> 0 | CE1: =SUM(AP6:AP66) -> 0 | CF1: =SUM(AQ6:AQ66) -> 0 | CG1: =Calculadora!$A$7 -> carre 30 # 44-55 Medellin | CI1: =Calculadora!$A$8 -> 3345520 | CJ1: ='D-basicos'!$C$83 -> 3826000
A2: =TODAY() -> 2021-01-08 | B2: =Calculadora!$A$6 -> NIT: 12345 | P2: TOTAL NETO PAGADO | R2: =Neto -> 4305212 | S2: =CONVIERTENUMLETRA(R2) -> CUATRO MILLONES TRESCIENTOS CINCO MIL DOSCIENTOS DOCE PESOS 00/100 M.N. | Z2: PROYECCIÓN APORTES PARAFISCALES Y OTRAS APROPIACIONES
D3: DEVENGADO | R3: DEDUCIONES | Z3: APROPIACIONES | AK3: CAMPOS VARIADOS | AX3: BASE DE DATOS | BB3: GENERICOS
A4: =YEAR(A2) -> 2021 | B4: EMPLEADO | D4: Sueldo Basico | E4: Dias T | F4: Basico | G4: AT | H4: RN | I4: RNF | J4: HED | K4: HEN | L4: HEFD | M4: HEFN | N4: HOF | O4: Factor Salarial | P4: No Constituyen Salario | Q4: Total Devengado | R4: Salud | S4: Pension | T4: Fondo de Solidaridad | U4: RT | V4: Otras Deduciones | W4: Total Deducciones | X4: Neto Pagado | Z4: Cesantias | AA4: Prima de Servicios | AB4: Int. S/Cesantia | AC4: Salud | AD4: Pension | AE4: Sena | AF4: ICBF | AG4: Caja de Compensanción | AH4: ARP | AI4: Vacaciones | AJ4: Laborados | AK4: CARGO | AL4: Genérico1 | AM4: Genérico2 | AN4: Genérico3 | AO4: Genérico4 | AP4: Genérico5 | AQ4: Genérico6 | AR4: Faltas | AS4: Genérico7 | AT4: Genérico8 | AU4: Genérico10 | AV4: Genérico11 | AW4: 1 | AX4: Nª | AY4: Numero | AZ4: Salario | BA4: Generico 12 | BB4: Generico 13 | BC4: Generico 14 | BD4: Generico 15 | BE4: Generico 16 | BF4: Generico 17 | BG4: Generico 18 | BH4: Generico 19 | BI4: Generico 20 | BJ4: I.d | BK4: Antigüedad | BL4: CANTIDAH | BM4: EMPLEADOS | BQ4: C.C | BR4: CCID | BS4: Antigüedad | BT4: cc | BU4: id | BV4: R | BW4: VACACIONES | BX4: DIAS | BY4: CESANTIAS | BZ4: Dias | CA4: INT CESSANTIAS | CB4: DIAS | CC4: Prima | CD4: DIAS
B5: Formulas | D5: 0 | E5: 0 | F5: =ROUND(+D5/30*E5,3) -> 0 | G5: =IF(D5=0,0,IF(D5<=2*'D-basicos'!$B$4,'D-basicos'!$B$5/30*Nomina!E5,0)) -> 0 | H5: =(D5/240)*(1 *'D-basicos'!$C$40) -> 0 | I5: =(D5/240)*(1*'D-basicos'!$C$46) -> 0 | J5: =(D5/240)*(1*'D-basicos'!$C$41) -> 0 | K5: =(D5/240)*(1*'D-basicos'!$C$42) -> 0 | L5: =(D5/240)*(1*'D-basicos'!$C$44) -> 0 | M5: =(D5/240)*(1*'D-basicos'!$C$45) -> 0 | N5: =(D5/240)*(1*'D-basicos'!$C$43) -> 0 | O5: 0 | P5: 0 | Q5: =SUM(F5:P5) -> 0 | R5: =(Q5-P5-G5)*'D-basicos'!$B$15 -> 0 | S5: =(Q5-P5-G5)*'D-basicos'!$B$16 -> 0 | W5: =SUM(R5:V5) -> 0 | X5: =Q5-W5 -> 0 | Z5: =(Q5-P5)*'D-basicos'!$B$8 -> 0 | AA5: =(Q5-P5)*'D-basicos'!$B$9 -> 0 | AB5: =(Z5*E5*'D-basicos'!$C$10)/360 -> 0 | AC5: =(Q5-P5-G5)*'D-basicos'!$C$15 -> 0 | AD5: =(Q5-P5-G5)*'D-basicos'!$C$16 -> 0 | AE5: =(Q5-P5-G5)*'D-basicos'!$B$49 -> 0 | AF5: =(Q5-P5-G5)*'D-basicos'!$B$50 -> 0 | AG5: =(Q5-P5-G5)*'D-basicos'!$B$51 -> 0 | AH5: =(Q5-G5-P5)*'D-basicos'!$C$28 -> 0 | AI5: =(Q5-G5-P5)*'D-basicos'!$B$11 -> 0 | AJ5: das laborados | AL5: Aportes Adicionales Salud, UPC | AM5: Aportes voluntarios al Fondo de Pensiones | AN5: Descuento por Aportes AFC | AO5: Descuentos Por Prestamo | AP5: Descuentos Por Aportes a cooperativas | AQ5: Descuentos Por Embargos | AR5: Diás de descanso, Incapacidad, licencia y no trabajados | AS5: Excusa | AT5: RUTA | AU5: Prestación Económica por Incaoacidad o Licencia | AV5: Vacaciones | AW5: D:\Trabajos JEGE\Aleja\ALEJANDRA\Articulos\imagenes\Imagen21.jpg | AY5: UR | AZ5: Salario Basico | BA5: CARGO | BB5: RN | BC5: Comisiones | BD5: Factor Salarial | BE5: 1º faltas | BF5: 2ºfaltas | BG5: 3ºfaltas | BH5: 4ºfaltas | BI5: Total HE | BL5: Bonificaciones Y Primas | BR5: cc | BS5: antigüedad | BV5: RWCARGO NOCTURNO | CG5: Aportes Parafiscales | CH5: 30
A6: Enero | B6: Carolina Bargas | D6: 950000 | E6: 30 | F6: 950000 | G6: 100000 | H6: 0 | I6: 0 | J6: 0 | K6: 0 | L6: 0 | M6: 0 | N6: 0 | O6: 0 | P6: 0 | Q6: 1050000 | R6: 38000 | S6: 38000 | T6: 0 | U6: 0 | V6: 0 | W6: 76000 | X6: 974000 | Z6: 87465 | AA6: 87465 | AB6: 874.65 | AC6: 80750 | AD6: 114000 | AE6: 19000 | AF6: 28500 | AG6: 38000 | AH6: 4940 | AI6: 39615 | AJ6: 30 | AK6: Analista | AL6: 0 | AM6: 0 | AN6: 0 | AO6: 0 | AP6: 0 | AQ6: 0 | AR6: 0 | AX6: 1 | AY6: Yeny Bastidas | AZ6: 1000000 | BA6: Secretaria | BB6: =SUM(H6:I6) -> 0 | BC6: 0 | BD6: 0 | BF6: /0/0 | BG6: /0/0 | BI6: =SUM(H6:N6) -> 0 | BJ6: .01 | BK6: 2008-04-05 | BL6: 0 | BM6: =AY6 -> Yeny Bastidas | BN6: =AZ6 -> 1000000 | BO6: =BA6 -> Secretaria | BP6: =BK6 -> 2008-04-05 | BQ6: 39567345 | BR6: CÉDULA DE CIUDADANÍA | BS6: 02/02/2012 | BT6: 39256348 | BU6: CÉDULA DE CIUDADANÍA | BV6: 0 | BW6: 0 | BX6: 0 | BY6: 0 | BZ6: 0 | CA6: 0 | CB6: 0 | CC6: 0 | CD6: 0
A7: Enero | B7: Yeny Bastidas | D7: 1000000 | E7: 30 | F7: 1000000 | G7: 97032 | H7: 0 | I7: 0 | J7: 0 | K7: 50000 | L7: 0 | M7: 0 | N7: 0 | O7: 100000 | P7: 0 | Q7: 1206454 | R7: 44000 | S7: 44000 | T7: 0 | U7: 0 | V7: 0 | W7: 88000 | X7: 1118454 | Z7: 100497.62 | AA7: 100497.62 | AB7: 1004.9762 | AC7: 93500 | AD7: 132000 | AE7: 22000 | AF7: 33000 | AG7: 44000 | AH7: 5720 | AI7: 45870 | AJ7: 30 | AK7: Secretaria | AL7: 0 | AM7: 0 | AN7: 0 | AO7: 0 | AP7: 0 | AQ7: 0 | AR7: 0 | AX7: 2 | BB7: =SUM(H7:I7) -> 0 | BC7: 100000 | BD7: 0 | BF7: /0/0 | BG7: /0/0 | BI7: =SUM(H7:N7) -> 50000 | BJ7: .02 | BL7: 0 | BM7: =AY7 -> 0 | BN7: 0 | BO7: 0 | BP7: =BK7 -> 00:00:00 | BS7: 05/04/2008 | BT7: 39567345 | BU7: CÉDULA DE CIUDADANÍA | BV7: 0 | BW7: 0 | BX7: 0 | BY7: 0 | BZ7: 0 | CA7: 0 | CB7: 0 | CC7: 0 | CD7: 0
A8: Enero | B8: Yeny Bastidas | D8: 1000000 | E8: 30 | F8: 1000000 | G8: 106454 | H8: 16875 | I8: 0 | J8: 0 | K8: 0 | L8: 0 | M8: 0 | N8: 0 | O8: 40000 | P8: 0 | Q8: 1163329 | R8: 42275 | S8: 42275 | T8: 0 | U8: 0 | V8: 0 | W8: 84550 | X8: 1078779 | Z8: 96905.31 | AA8: 96905.31 | AB8: 969.0531 | AC8: 89834.375 | AD8: 126825 | AE8: 21137.5 | AF8: 31706.25 | AG8: 42275 | AH8: 5495.75 | AI8: 44071.69 | AJ8: 30 | AK8: Secretaria | AL8: 0 | AM8: 0 | AN8: 0 | AO8: 0 | AP8: 0 | AQ8: 0 | AR8: 0 | AX8: 3 | BB8: 16875 | BC8: 40000 | BD8: 0 | BF8: /0/0 | BG8: /0/0 | BI8: 16875 | BJ8: .03 | BL8: 0 | BN8: 0 | BO8: 0 | BP8: 00:00:00 | BS8: 05/04/2008 | BT8: 39567345 | BU8: CÉDULA DE CIUDADANÍA | BV8: 3 | BW8: 0 | BX8: 0 | BY8: 0 | BZ8: 0 | CA8: 0 | CB8: 0 | CC8: 0 | CD8: 0
A9: Enero | B9: Yeny Bastidas | D9: 1000000 | E9: 30 | F9: 1000000 | G9: 106454 | H9: 16875 | I9: 0 | J9: 0 | K9: 0 | L9: 0 | M9: 0 | N9: 0 | O9: 100000 | P9: 0 | Q9: 1223329 | R9: 44675 | S9: 44675 | T9: 0 | U9: 0 | V9: 0 | W9: 89350 | X9: 1133979 | Z9: 101903.31 | AA9: 101903.31 | AB9: 1019.0331 | AC9: 94934.375 | AD9: 134025 | AE9: 22337.5 | AF9: 33506.25 | AG9: 44675 | AH9: 5807.75 | AI9: 46573.69 | AJ9: 30 | AK9: Secretaria | AL9: 0 | AM9: 0 | AN9: 0 | AO9: 0 | AP9: 0 | AQ9: 0 | AR9: 0 | AX9: 4 | BB9: 16875 | BC9: 100000 | BD9: 0 | BF9: /0/0 | BG9: /0/0 | BI9: 16875 | BJ9: .04 | BL9: 0 | BM9: 0 | BN9: 0 | BO9: 0 | BP9: 00:00:00 | BS9: 05/04/2008 | BT9: 39567345 | BU9: CÉDULA DE CIUDADANÍA | BV9: 3 | BW9: 0 | BX9: 0 | BY9: 0 | BZ9: 0 | CA9: 0 | CB9: 0 | CC9: 0 | CD9: 0
AX10: 5 | BB10: 0 | BI10: 0 | BJ10: .05 | BM10: 0 | BN10: 0 | BO10: 0 | BP10: 00:00:00
AX11: 6 | BB11: 0 | BI11: 0 | BJ11: .06 | BM11: 0 | BN11: 0 | BO11: 0 | BP11: 00:00:00
AX12: 7 | BB12: 0 | BI12: 0 | BJ12: .07 | BM12: 0 | BN12: 0 | BO12: 0 | BP12: 00:00:00
AX13: 8 | BB13: 0 | BI13: 0 | BJ13: .08 | BM13: 0 | BN13: 0 | BO13: 0 | BP13: 00:00:00
AX14: 9 | BB14: 0 | BI14: 0 | BJ14: .09 | BM14: 0 | BN14: 0 | BO14: 0 | BP14: 00:00:00
AX15: 10 | BB15: 0 | BI15: 0 | BJ15: .10 | BM15: 0 | BN15: 0 | BO15: 0 | BP15: 00:00:00
AX16: 11 | BB16: 0 | BI16: 0 | BJ16: .11 | BM16: 0 | BN16: 0 | BO16: 0 | BP16: 00:00:00
AX17: 12 | BB17: 0 | BI17: 0 | BJ17: .12 | BM17: 0 | BN17: 0 | BO17: 0 | BP17: 00:00:00
AX18: 13 | BB18: 0 | BI18: 0 | BJ18: .13 | BM18: 0 | BN18: 0 | BO18: 0 | BP18: 00:00:00
AX19: 14 | BB19: 0 | BI19: 0 | BJ19: .14 | BM19: 0 | BN19: 0 | BO19: 0 | BP19: 00:00:00
AX20: 15 | BB20: 0 | BI20: 0 | BJ20: .15 | BM20: 0 | BN20: 0 | BO20: 0 | BP20: 00:00:00
AX21: 16 | BB21: 0 | BI21: 0 | BJ21: .16 | BM21: 0 | BN21: 0 | BO21: 0 | BP21: 00:00:00
AX22: 17 | BB22: 0 | BI22: 0 | BJ22: .17 | BM22: 0 | BN22: 0 | BO22: 0 | BP22: 00:00:00
AX23: 18 | BB23: 0 | BI23: 0 | BJ23: .18 | BM23: 0 | BN23: 0 | BO23: 0 | BP23: 00:00:00
AX24: 19 | BB24: 0 | BI24: 0 | BJ24: .19 | BM24: 0 | BN24: 0 | BO24: 0 | BP24: 00:00:00
AX25: 20 | BB25: 0 | BI25: 0 | BJ25: .20 | BM25: 0 | BN25: 0 | BO25: 0 | BP25: 00:00:00
AX26: 21 | BB26: 0 | BI26: 0 | BJ26: .21 | BM26: 0 | BN26: 0 | BO26: 0 | BP26: 00:00:00
AX27: 22 | BB27: 0 | BI27: 0 | BJ27: .22 | BM27: 0 | BN27: 0 | BO27: 0 | BP27: 00:00:00
AX28: 23 | BB28: 0 | BI28: 0 | BJ28: .23 | BM28: 0 | BN28: 0 | BO28: 0 | BP28: 00:00:00
AX29: 24 | BB29: 0 | BI29: 0 | BJ29: .24 | BM29: 0 | BN29: 0 | BO29: 0 | BP29: 00:00:00
AX30: 25 | BB30: 0 | BI30: 0 | BJ30: .25 | BM30: 0 | BN30: 0 | BO30: 0 | BP30: 00:00:00
AX31: 26 | BB31: 0 | BI31: 0 | BJ31: .26 | BM31: 0 | BN31: 0 | BO31: 0 | BP31: 00:00:00
AX32: 27 | BB32: 0 | BI32: 0 | BJ32: .27 | BM32: 0 | BN32: 0 | BO32: 0 | BP32: 00:00:00
AX33: 28 | BB33: 0 | BI33: 0 | BJ33: .28 | BM33: 0 | BN33: 0 | BO33: 0 | BP33: 00:00:00
AX34: 29 | BB34: 0 | BI34: 0 | BJ34: .29 | BM34: 0 | BN34: 0 | BO34: 0 | BP34: 00:00:00
AX35: 30 | BB35: 0 | BI35: 0 | BJ35: .30 | BM35: 0 | BN35: 0 | BO35: 0 | BP35: 00:00:00
AX36: 31 | BB36: 0 | BI36: 0 | BJ36: .31 | BM36: 0 | BN36: 0 | BO36: 0 | BP36: 00:00:00
AX37: 32 | BB37: =SUM(H37:I37) -> 0 | BI37: 0 | BJ37: .32 | BM37: 0 | BN37: 0 | BO37: 0 | BP37: 00:00:00
AX38: 33 | BB38: 0 | BI38: 0 | BJ38: .33 | BM38: =AY38 -> 0 | BN38: =AZ38 -> 0 | BO38: =BA38 -> 0 | BP38: 00:00:00
AX39: 34 | BB39: 0 | BI39: 0 | BJ39: .34 | BM39: 0 | BN39: 0 | BO39: 0 | BP39: 00:00:00
AX40: 35 | BB40: 0 | BI40: 0 | BJ40: .35 | BM40: 0 | BN40: 0 | BO40: 0 | BP40: 00:00:00
AX41: 36 | BB41: 0 | BI41: 0 | BJ41: .36 | BM41: 0 | BN41: 0 | BO41: 0 | BP41: 00:00:00
AX42: 37 | BB42: 0 | BI42: 0 | BJ42: .37 | BM42: 0 | BN42: 0 | BO42: 0 | BP42: 00:00:00
AX43: 38 | BB43: 0 | BI43: 0 | BJ43: .38 | BM43: 0 | BN43: 0 | BO43: 0 | BP43: 00:00:00
AX44: 39 | BB44: 0 | BI44: 0 | BJ44: .39 | BM44: 0 | BN44: 0 | BO44: 0 | BP44: 00:00:00
AX45: 40 | BB45: 0 | BI45: 0 | BJ45: .40 | BM45: 0 | BN45: 0 | BO45: 0 | BP45: 00:00:00
AX46: 41 | BB46: 0 | BI46: 0 | BJ46: .41 | BM46: 0 | BN46: 0 | BO46: 0 | BP46: 00:00:00
AX47: 42 | BB47: 0 | BI47: 0 | BJ47: .42 | BM47: 0 | BN47: 0 | BO47: 0 | BP47: 00:00:00
AX48: 43 | BB48: 0 | BI48: 0 | BJ48: .43 | BM48: 0 | BN48: 0 | BO48: 0 | BP48: 00:00:00
AX49: 44 | BB49: 0 | BI49: 0 | BJ49: .44 | BM49: 0 | BN49: 0 | BO49: 0 | BP49: 00:00:00
AX50: 45 | BB50: 0 | BI50: 0 | BJ50: .45 | BM50: 0 | BN50: 0 | BO50: 0 | BP50: 00:00:00
AX51: 46 | BB51: 0 | BI51: 0 | BJ51: .46 | BM51: 0 | BN51: 0 | BO51: 0 | BP51: 00:00:00
AX52: 47 | BB52: 0 | BI52: 0 | BJ52: .47 | BM52: 0 | BN52: 0 | BO52: 0 | BP52: 00:00:00
AX53: 48 | BB53: 0 | BI53: 0 | BJ53: .48 | BM53: 0 | BN53: 0 | BO53: 0 | BP53: 00:00:00
AX54: 49 | BB54: 0 | BI54: 0 | BJ54: .49 | BM54: 0 | BN54: 0 | BO54: 0 | BP54: 00:00:00
AX55: 50 | BB55: 0 | BI55: 0 | BJ55: .50 | BM55: 0 | BN55: 0 | BO55: 0 | BP55: 00:00:00
AX56: 51 | BB56: 0 | BI56: 0 | BJ56: .51 | BM56: 0 | BN56: 0 | BO56: 0 | BP56: 00:00:00
AX57: 52 | BB57: 0 | BI57: 0 | BJ57: .52 | BM57: 0 | BN57: 0 | BO57: 0 | BP57: 00:00:00
AX58: 53 | BB58: 0 | BI58: 0 | BJ58: .53 | BM58: 0 | BN58: 0 | BO58: 0 | BP58: 00:00:00
AX59: 54 | BB59: 0 | BI59: 0 | BJ59: .54 | BM59: 0 | BN59: 0 | BO59: 0 | BP59: 00:00:00
AX60: 55 | BB60: 0 | BI60: 0 | BJ60: .55 | BM60: 0 | BN60: 0 | BO60: 0 | BP60: 00:00:00
AX61: 56 | BB61: 0 | BI61: 0 | BJ61: .56 | BM61: 0 | BN61: 0 | BO61: 0 | BP61: 00:00:00
AX62: 57 | BB62: 0 | BI62: 0 | BJ62: .57 | BM62: 0 | BN62: 0 | BO62: 0 | BP62: 00:00:00
AX63: 58 | BB63: 0 | BI63: 0 | BJ63: .58
AX64: 59 | BB64: 0 | BI64: 0 | BJ64: .59 | BM64: =AY64 -> 0 | BN64: 0 | BO64: 0 | BP64: 00:00:00
AX65: 60 | BB65: 0 | BI65: 0 | BJ65: .60 | BM65: 0 | BN65: 0 | BO65: 0 | BP65: 00:00:00

Sheet Resumen (hidden)

Sheet Datos
E2: =Calculadora!$A$5 -> 5
F3: SELECIONAR
U4: Periodo: | V4: =LOOKUP(Nomina!AW4,Nomina!AX6:AX65,Nomina!A6:A65) -> Enero
U5: =NIT -> NIT: 12345
E7: 1 | F7: EMPLEADO | G7: Empleados | U7: Factor salarial | W7: 5
G8: Sueldo Basico | I8: =LOOKUP(Nomina!AW4,Nomina!AX6:AX65,Nomina!D6:D65) -> 950000 | U8: Total Horas Extras | V8: =LOOKUP(Nomina!AW4,Nomina!AX6:AX65,Nomina!BI6:BI65) -> 0
G9: Salario diá | I9: =$I$10*8 -> 31666.66667 | U9: Total Recargos | V9: =LOOKUP(Nomina!AW4,Nomina!AX6:AX65,Nomina!BB6:BB65) -> 0
G10: Salario hora | I10: =$I$8/240 -> 3958.333333 | U10: Comisones | V10: =LOOKUP(Nomina!AW4,Nomina!AX6:AX65,Nomina!BC6:BC65) -> 0
G11: Auxilio de T. | I11: =LOOKUP(Nomina!AW4,Nomina!AX6:AX65,Nomina!G6:G65) -> 100000 | U11: Otros Valores | V11: =LOOKUP(Nomina!AW4,Nomina!AX6:AX65,Nomina!BD6:BD65) -> 0
E13: 2 | F13: Valor Horas Extras | G13: Valor Horas Extras | U13: Descuentos | W13: 6
G14: Ordinaria | I14: =$I$10*'D-basicos'!$C$41 -> 4947.916667 | M14: =LOOKUP(Nomina!AW4,Nomina!AX6:AX65,Nomina!B6:B65) -> Carolina Bargas | U14: Aportes AFC. | V14: =LOOKUP(Nomina!AW4,Nomina!AX6:AX65,Nomina!AN6:AN65) -> 0
G15: D. Ordinario | I15: =$I$10*'D-basicos'!$C$44 -> 7916.666667 | M15: =LOOKUP(Nomina!AW4,Nomina!AX6:AX65,Nomina!AK6:AK65) -> Analista | U15: Prestamo | V15: =LOOKUP(Nomina!AW4,Nomina!AX6:AX65,Nomina!AO6:AO65) -> 0
G16: Nocturno | I16: =$I$10*'D-basicos'!$C$42 -> 6927.083333 | O16: =LOOKUP(Nomina!AW4,Nomina!AX6:AX65,Nomina!AT6:AT65) ->  | U16: Aportes a ccoperativas | V16: =LOOKUP(Nomina!AW4,Nomina!AX6:AX65,Nomina!AP6:AP65) -> 0
G17: D Y f Nocturno | I17: =$I$10*'D-basicos'!$C$45 -> 9895.833333 | U17: Embargo | V17: =LOOKUP(Nomina!AW4,Nomina!AX6:AX65,Nomina!AQ6:AQ65) -> 0
F18: =Calculadora!$C$6 -> 0 | U18: Retencion en la fuente | V18: =LOOKUP(Nomina!AW4,Nomina!AX6:AX65,Nomina!U6:U65+Nomina!U6:U65) -> 0
F19: =Calculadora!$C$6 -> 0
E20: 3 | F20: Valor Dominical | G20: Valor Dominical | U20: Aportes | W20: 7
G21: Ordinario | I21: =$I$10*'D-basicos'!$C$43 -> 6927.083333 | U21: Salud (UPC) | V21: =LOOKUP(Nomina!AW4,Nomina!AX6:AX65,Nomina!AL6:AL65) -> 0
G22: Nocturno | I22: =$I$10*'D-basicos'!$C$46 -> 8312.5 | L22: Dias T. | P22: Faltas | U22: Fondo de Pensiones | V22: =LOOKUP(Nomina!AW4,Nomina!AX6:AX65,Nomina!AM6:AM65) -> 0
F23: =Calculadora!$C$6 -> 0
E24: 4 | F24: Seguridad Social | G24: Otras Apropiaciones | M24: =LOOKUP(Nomina!AW4,Nomina!AX6:AX65,Nomina!E6:E65) -> 30 | O24: =LOOKUP(Nomina!AW4,Nomina!AX6:AX65,Nomina!AJ6:AJ65) -> 30 | Q24: =LOOKUP(Nomina!AW4,Nomina!AX6:AX65,Nomina!AR6:AR65) -> 0 | U24: Factor No Salarial | W24: 8
G25: Salud | I25: =LOOKUP(Nomina!AW4,Nomina!AX6:AX65,Nomina!R6:R65) -> 38000 | U25: Total Valores | V25: =LOOKUP(Nomina!AW4,Nomina!AX6:AX65,Nomina!P6:P65) -> 0
G26: Pension | I26: =LOOKUP(Nomina!AW4,Nomina!AX6:AX65,Nomina!R6:R65) -> 38000
G27: Vacaciones | I27: =LOOKUP(Nomina!AW4,Nomina!AX6:AX65,Nomina!AI6:AI65) -> 39615 | O27: =Calculadora!$A$2 -> 1 | U27: Asistencia | V27: Fecha | W27: 9
G28: ARP | I28: =LOOKUP(Nomina!AW4,Nomina!AX6:AX65,Nomina!AH6:AH65) -> 4940 | O28: =LOOKUP(Nomina!AW4,Nomina!AX6:AX65,Nomina!AS6:AS65) -> 0 | U28: 1º Falta | V28: =LOOKUP(Nomina!AW4,Nomina!AX6:AX65,Nomina!BF6:BF65) -> /0/0
G29: Prima de Servicios | I29: =LOOKUP(Nomina!AW4,Nomina!AX6:AX65,Nomina!AA6:AA65) -> 87465 | O29: =LOOKUP(Nomina!AW4,Nomina!AX6:AX65,Nomina!BE6:BE65) -> 0 | U29: 2º Falta | V29: =LOOKUP(Nomina!AW4,Nomina!AX6:AX65,Nomina!BG6:BG65) -> /0/0
G30: Cesantias | I30: =LOOKUP(Nomina!AW4,Nomina!AX6:AX65,Nomina!Z6:Z65) -> 87465
O32: =LOOKUP(Nomina!AW4,Nomina!AX6:AX65,Nomina!X6:X65) -> 974000

Sheet Recibo
C1: =CONCATENATE("RECIBO DE PAGO ",B10) -> RECIBO DE PAGO Carolina Bargas
B3: =NIT -> NIT: 12345
B4: =CONCATENATE("Detalles del Pago", Datos!M14) -> Detalles del PagoCarolina Bargas
J5: 0
I6: PERIODO CAUSADO
B7: EMPRESA | E7: DIRECCIÓN | H7: TELEFONO | I7: DEL | J7: Al
B8: San JorgePlus | E8: =Dirección -> carre 30 # 44-55 Medellin | H8: =Telefono -> 3345520 | I8: 2021-12-01 | J8: 2021-12-15
B9: EMPLEADO | E9: =LOOKUP(Nomina!AW4,Nomina!AX6:AX65,Nomina!BU6:BU65) -> CÉDULA DE CIUDADANÍA | H9: PUESTO | I9: ANTIGÜEDAD | J9: TOTAL DIÁS
B10: =Datos!M$14 -> Carolina Bargas | E10: =LOOKUP(Nomina!AW4,Nomina!AX6:AX65,Nomina!BT6:BT65) -> 39256348 | H10: =Datos!$M$15 -> Analista | I10: =LOOKUP(Nomina!AW4,Nomina!AX6:AX65,Nomina!BS6:BS65) -> 02/02/2012 | J10: =Datos!$M$24 -> 30
H11: Valor de la Operación
B12: CANTIDAD | D12: CONCEPTO | H12: CANTIDAD | I12: DEBITO | J12: CREDITO
B13: 25050505 | C13: SALARIOS POR PAGAR | H13: =$J$10 -> 30 | I13: =Datos!$I$8 -> 950000 | L13: =$I$13 -> 950000 | M13: 950000
B14: 25150505 | C14: INTERESES A LA CESANTIAS POR PAGAR | H14: =LOOKUP(Nomina!AW4,Nomina!AX6:AX65,Nomina!CB6:CB65) -> 0 | I14: =LOOKUP(Nomina!AW4,Nomina!AX6:AX65,Nomina!CA6:CA65) -> 0 | L14: =$I$14 -> 0 | M14: 0
B15: 25056905 | C15: APORTES E.P.S. | H15: =$J$10 -> 30 | I15: 0 | J15: =Datos!$I$25 -> 38000 | L15: =$J$15 -> 38000 | M15: 38000
B16: 23803005 | C16: APORTES A FONDOS DE PENSION | H16: =$J$10 -> 30 | I16: 0 | J16: =Datos!$I$26 -> 38000 | L16: =$J$16 -> 38000 | M16: 38000
B17: 510527 | C17: AUXILIO DE TRANSPORTE | H17: =$J$10 -> 30 | I17: =Datos!$I$11 -> 100000 | L17: =$I$17 -> 100000 | M17: 106454
B18: 233520 | C18: COMISIONES | H18: =$J$10 -> 30 | I18: =LOOKUP(Nomina!AW4,Nomina!AX6:AX65,Nomina!BC6:BC65) -> 0 | L18: =$I$18 -> 0 | M18: 0
B19: 25200505 | C19: PRIMA DE SERVICIOS | H19: =LOOKUP(Nomina!AW4,Nomina!AX6:AX65,Nomina!CD6:CD65) -> 0 | I19: =LOOKUP(Nomina!AW4,Nomina!AX6:AX65,Nomina!CC6:CC65) -> 0 | L19: =$I$19 -> 0 | M19: 0
B20: 253020 | C20: BONIFICACIONES HABITUALES | H20: =$J$10 -> 30 | I20: =LOOKUP(Nomina!AW4,Nomina!AX6:AX65,Nomina!BD6:BD65) -> 0 | L20: =$I$20 -> 0 | M20: 0
B21: 510515 | C21: HORAS EXTRAS | H21: =LOOKUP(Nomina!AW4,Nomina!AX6:AX65,Nomina!BL6:BL65) -> 0 | I21: =LOOKUP(Nomina!AW4,Nomina!AX6:AX65,Nomina!BI6:BI65) -> 0 | L21: =$I$21 -> 0 | M21: 0
B22: 25250505 | C22: VACACIONES POR PAGAR | H22: =LOOKUP(Nomina!AW4,Nomina!AX6:AX65,Nomina!BX6:BX65) -> 0 | I22: =LOOKUP(Nomina!AW4,Nomina!AX6:AX65,Nomina!BW6:BW65) -> 0 | L22: =$H$22 -> 0 | M22: 0
B23: 236505 | C23: RETEFUENTE SALARIOS | H23: =$J$10 -> 30 | I23: =Datos!$V$18 -> 0 | L23: =$I$23 -> 0 | M23: 0
B24: 237045 | C24: PRESTAMO | H24: =$J$10 -> 30 | I24: =Datos!$V$15 -> 0 | L24: =$I$24 -> 0 | M24: 0
B25: 25100505 | C25: CESANTIAS POR PAGAR | H25: =LOOKUP(Nomina!AW4,Nomina!AX6:AX65,Nomina!BZ6:BZ65) -> 0 | I25: =LOOKUP(Nomina!AW4,Nomina!AX6:AX65,Nomina!BY6:BY65) -> 0 | L25: =$I$25 -> 0 | M25: 0
B26: 237005 | C26: APORTES SALUD (UPC) | H26: =$J$10 -> 30 | I26: =Datos!$V$21 -> 0 | L26: =$I$26 -> 0 | M26: 0
B27: 237005 | C27: APORTES VOLUNTARIOS PENSION | H27: 30 | I27: =Datos!$V$22 -> 0 | L27: =$I$27 -> 0 | M27: 0
B28: 237040 | C28: APORTES A COOPERATIVA | H28: 30 | I28: =Datos!$V$16 -> 0 | L28: =$I$28 -> 0 | M28: 0
B29: 237015 | C29: APORTES AFC | H29: 30 | I29: =Datos!$V$14 -> 0 | L29: =$I$29 -> 0 | M29: 0
B30: 237095 | C30: OTRAS | H30: 30 | I30: =Datos!$V$25 -> 0 | L30: =$I$30 -> 0 | M30: 0
B31: 237025 | C31: EMBARGO | H31: 30 | I31: =Datos!$V$17 -> 0 | L31: =$I$31 -> 0 | M31: 0
B32: 510515 | C32: RECARGOS | H32: =LOOKUP(Nomina!AW4,Nomina!AX6:AX65,Nomina!BV6:BV65) -> 0 | I32: =LOOKUP(Nomina!AW4,Nomina!AX6:AX65,Nomina!BB6:BB65) -> 0 | L32: =$I$32 -> 0 | M32: 0
B33: 11100502 | C33: BANCO | J33: =Datos!$O$32+I22+$I$25+$I$14+$I$19 -> 974000
H34: TOTALES | I34: =SUM(I13:I33) -> 1050000 | J34: =SUM(J13:J33) -> 1050000
H36: A PAGAR | J36: =+J33 -> 974000

Sheet Plantilla
C1: =CONCATENATE(Nomina!A6," del ",Nomina!A4) -> Enero del 2021
C2: =NIT -> NIT: 12345
C3: San JorgePlus | P3: Desde: | Q3: 2021-02-01
G4: 0 | P4: Hasta: | Q4: 2021-02-01
B5: Nº | C5: EMPLEADO Nombre y Apellido | D5: Salario Base | E5: Lab | F5: Liq | G5: Basico | H5: Aux. Transporte | I5: H.E | J5: Comisiones | K5: Devengado | L5: Salud | M5: Pension | N5: Otras | O5: Deduciones | P5: Pagado | Q5: (Firma y CC) | S5: 5
B6: 1 | C6: =IF(Nomina!B6="",0,Nomina!B6) -> Carolina Bargas | D6: =IF(Nomina!D6="",0,Nomina!D6) -> 950000 | E6: =IF(Nomina!AJ6="",0,Nomina!AJ6) -> 30 | F6: =IF(Nomina!E6="",0,Nomina!E6) -> 30 | G6: =IF(Nomina!F6="",0,Nomina!F6) -> 950000 | H6: =IF(Nomina!G6="",0,Nomina!G6) -> 100000 | I6: =IF(Nomina!BI6="",0,Nomina!BI6) -> 0 | J6: =IF(Nomina!BC6="",0,Nomina!BC6) -> 0 | K6: =IF(Nomina!Q6="",0,Nomina!Q6) -> 1050000 | L6: =IF(Nomina!R6="",0,Nomina!R6) -> 38000 | M6: =IF(Nomina!R6="",0,Nomina!S6) -> 38000 | N6: =IF(Nomina!V6="",0,Nomina!V6) -> 0 | O6: =IF(Nomina!W6="",0,Nomina!W6) -> 76000 | P6: =IF(Nomina!X6="",0,Nomina!X6) -> 974000
B7: 2 | C7: =IF(Nomina!B7="",0,Nomina!B7) -> Yeny Bastidas | D7: =IF(Nomina!D7="",0,Nomina!D7) -> 1000000 | E7: =IF(Nomina!AJ7="",0,Nomina!AJ7) -> 30 | F7: =IF(Nomina!E7="",0,Nomina!E7) -> 30 | G7: =IF(Nomina!F7="",0,Nomina!F7) -> 1000000 | H7: =IF(Nomina!G7="",0,Nomina!G7) -> 97032 | I7: =IF(Nomina!BI7="",0,Nomina!BI7) -> 50000 | J7: =IF(Nomina!BC7="",0,Nomina!BC7) -> 100000 | K7: =IF(Nomina!Q7="",0,Nomina!Q7) -> 1206454 | L7: =IF(Nomina!R7="",0,Nomina!R7) -> 44000 | M7: =IF(Nomina!R7="",0,Nomina!S7) -> 44000 | N7: =IF(Nomina!V7="",0,Nomina!V7) -> 0 | O7: =IF(Nomina!W7="",0,Nomina!W7) -> 88000 | P7: =IF(Nomina!X7="",0,Nomina!X7) -> 1118454
B8: 3 | C8: =IF(Nomina!B8="",0,Nomina!B8) -> Yeny Bastidas | D8: =IF(Nomina!D8="",0,Nomina!D8) -> 1000000 | E8: =IF(Nomina!AJ8="",0,Nomina!AJ8) -> 30 | F8: =IF(Nomina!E8="",0,Nomina!E8) -> 30 | G8: =IF(Nomina!F8="",0,Nomina!F8) -> 1000000 | H8: =IF(Nomina!G8="",0,Nomina!G8) -> 106454 | I8: =IF(Nomina!BI8="",0,Nomina!BI8) -> 16875 | J8: =IF(Nomina!BC8="",0,Nomina!BC8) -> 40000 | K8: =IF(Nomina!Q8="",0,Nomina!Q8) -> 1163329 | L8: =IF(Nomina!R8="",0,Nomina!R8) -> 42275 | M8: =IF(Nomina!R8="",0,Nomina!S8) -> 42275 | N8: =IF(Nomina!V8="",0,Nomina!V8) -> 0 | O8: =IF(Nomina!W8="",0,Nomina!W8) -> 84550 | P8: =IF(Nomina!X8="",0,Nomina!X8) -> 1078779
B9: 4 | C9: =IF(Nomina!B9="",0,Nomina!B9) -> Yeny Bastidas | D9: =IF(Nomina!D9="",0,Nomina!D9) -> 1000000 | E9: =IF(Nomina!AJ9="",0,Nomina!AJ9) -> 30 | F9: =IF(Nomina!E9="",0,Nomina!E9) -> 30 | G9: =IF(Nomina!F9="",0,Nomina!F9) -> 1000000 | H9: =IF(Nomina!G9="",0,Nomina!G9) -> 106454 | I9: =IF(Nomina!BI9="",0,Nomina!BI9) -> 16875 | J9: =IF(Nomina!BC9="",0,Nomina!BC9) -> 100000 | K9: =IF(Nomina!Q9="",0,Nomina!Q9) -> 1223329 | L9: =IF(Nomina!R9="",0,Nomina!R9) -> 44675 | M9: =IF(Nomina!R9="",0,Nomina!S9) -> 44675 | N9: =IF(Nomina!V9="",0,Nomina!V9) -> 0 | O9: =IF(Nomina!W9="",0,Nomina!W9) -> 89350 | P9: =IF(Nomina!X9="",0,Nomina!X9) -> 1133979
B10: 5 | C10: =IF(Nomina!B10="",0,Nomina!B10) -> 0 | D10: =IF(Nomina!D10="",0,Nomina!D10) -> 0 | E10: =IF(Nomina!AJ10="",0,Nomina!AJ10) -> 0 | F10: =IF(Nomina!E10="",0,Nomina!E10) -> 0 | G10: =IF(Nomina!F10="",0,Nomina!F10) -> 0 | H10: =IF(Nomina!G10="",0,Nomina!G10) -> 0 | I10: =IF(Nomina!BI10="",0,Nomina!BI10) -> 0 | J10: =IF(Nomina!BC10="",0,Nomina!BC10) -> 0 | K10: =IF(Nomina!Q10="",0,Nomina!Q10) -> 0 | L10: =IF(Nomina!R10="",0,Nomina!R10) -> 0 | M10: =IF(Nomina!R10="",0,Nomina!S10) -> 0 | N10: =IF(Nomina!V10="",0,Nomina!V10) -> 0 | O10: =IF(Nomina!W10="",0,Nomina!W10) -> 0 | P10: =IF(Nomina!X10="",0,Nomina!X10) -> 0
B11: 6 | C11: =IF(Nomina!B11="",0,Nomina!B11) -> 0 | D11: =IF(Nomina!D11="",0,Nomina!D11) -> 0 | E11: =IF(Nomina!AJ11="",0,Nomina!AJ11) -> 0 | F11: =IF(Nomina!E11="",0,Nomina!E11) -> 0 | G11: =IF(Nomina!F11="",0,Nomina!F11) -> 0 | H11: =IF(Nomina!G11="",0,Nomina!G11) -> 0 | I11: =IF(Nomina!BI11="",0,Nomina!BI11) -> 0 | J11: =IF(Nomina!BC11="",0,Nomina!BC11) -> 0 | K11: =IF(Nomina!Q11="",0,Nomina!Q11) -> 0 | L11: =IF(Nomina!R11="",0,Nomina!R11) -> 0 | M11: =IF(Nomina!R11="",0,Nomina!S11) -> 0 | N11: =IF(Nomina!V11="",0,Nomina!V11) -> 0 | O11: =IF(Nomina!W11="",0,Nomina!W11) -> 0 | P11: =IF(Nomina!X11="",0,Nomina!X11) -> 0
B12: 7 | C12: =IF(Nomina!B12="",0,Nomina!B12) -> 0 | D12: =IF(Nomina!D12="",0,Nomina!D12) -> 0 | E12: =IF(Nomina!AJ12="",0,Nomina!AJ12) -> 0 | F12: =IF(Nomina!E12="",0,Nomina!E12) -> 0 | G12: =IF(Nomina!F12="",0,Nomina!F12) -> 0 | H12: =IF(Nomina!G12="",0,Nomina!G12) -> 0 | I12: =IF(Nomina!BI12="",0,Nomina!BI12) -> 0 | J12: =IF(Nomina!BC12="",0,Nomina!BC12) -> 0 | K12: =IF(Nomina!Q12="",0,Nomina!Q12) -> 0 | L12: =IF(Nomina!R12="",0,Nomina!R12) -> 0 | M12: =IF(Nomina!R12="",0,Nomina!S12) -> 0 | N12: =IF(Nomina!V12="",0,Nomina!V12) -> 0 | O12: =IF(Nomina!W12="",0,Nomina!W12) -> 0 | P12: =IF(Nomina!X12="",0,Nomina!X12) -> 0
B13: 8 | C13: =IF(Nomina!B13="",0,Nomina!B13) -> 0 | D13: =IF(Nomina!D13="",0,Nomina!D13) -> 0 | E13: =IF(Nomina!AJ13="",0,Nomina!AJ13) -> 0 | F13: =IF(Nomina!E13="",0,Nomina!E13) -> 0 | G13: =IF(Nomina!F13="",0,Nomina!F13) -> 0 | H13: =IF(Nomina!G13="",0,Nomina!G13) -> 0 | I13: =IF(Nomina!BI13="",0,Nomina!BI13) -> 0 | J13: =IF(Nomina!BC13="",0,Nomina!BC13) -> 0 | K13: =IF(Nomina!Q13="",0,Nomina!Q13) -> 0 | L13: =IF(Nomina!R13="",0,Nomina!R13) -> 0 | M13: =IF(Nomina!R13="",0,Nomina!S13) -> 0 | N13: =IF(Nomina!V13="",0,Nomina!V13) -> 0 | O13: =IF(Nomina!W13="",0,Nomina!W13) -> 0 | P13: =IF(Nomina!X13="",0,Nomina!X13) -> 0
B14: 9 | C14: =IF(Nomina!B14="",0,Nomina!B14) -> 0 | D14: =IF(Nomina!D14="",0,Nomina!D14) -> 0 | E14: =IF(Nomina!AJ14="",0,Nomina!AJ14) -> 0 | F14: =IF(Nomina!E14="",0,Nomina!E14) -> 0 | G14: =IF(Nomina!F14="",0,Nomina!F14) -> 0 | H14: =IF(Nomina!G14="",0,Nomina!G14) -> 0 | I14: =IF(Nomina!BI14="",0,Nomina!BI14) -> 0 | J14: =IF(Nomina!BC14="",0,Nomina!BC14) -> 0 | K14: =IF(Nomina!Q14="",0,Nomina!Q14) -> 0 | L14: =IF(Nomina!R14="",0,Nomina!R14) -> 0 | M14: =IF(Nomina!R14="",0,Nomina!S14) -> 0 | N14: =IF(Nomina!V14="",0,Nomina!V14) -> 0 | O14: =IF(Nomina!W14="",0,Nomina!W14) -> 0 | P14: =IF(Nomina!X14="",0,Nomina!X14) -> 0
B15: 10 | C15: =IF(Nomina!B15="",0,Nomina!B15) -> 0 | D15: =IF(Nomina!D15="",0,Nomina!D15) -> 0 | E15: =IF(Nomina!AJ15="",0,Nomina!AJ15) -> 0 | F15: =IF(Nomina!E15="",0,Nomina!E15) -> 0 | G15: =IF(Nomina!F15="",0,Nomina!F15) -> 0 | H15: =IF(Nomina!G15="",0,Nomina!G15) -> 0 | I15: =IF(Nomina!BI15="",0,Nomina!BI15) -> 0 | J15: =IF(Nomina!BC15="",0,Nomina!BC15) -> 0 | K15: =IF(Nomina!Q15="",0,Nomina!Q15) -> 0 | L15: =IF(Nomina!R15="",0,Nomina!R15) -> 0 | M15: =IF(Nomina!R15="",0,Nomina!S15) -> 0 | N15: =IF(Nomina!V15="",0,Nomina!V15) -> 0 | O15: =IF(Nomina!W15="",0,Nomina!W15) -> 0 | P15: =IF(Nomina!X15="",0,Nomina!X15) -> 0
B16: 11 | C16: =IF(Nomina!B16="",0,Nomina!B16) -> 0 | D16: =IF(Nomina!D16="",0,Nomina!D16) -> 0 | E16: =IF(Nomina!AJ16="",0,Nomina!AJ16) -> 0 | F16: =IF(Nomina!E16="",0,Nomina!E16) -> 0 | G16: =IF(Nomina!F16="",0,Nomina!F16) -> 0 | H16: =IF(Nomina!G16="",0,Nomina!G16) -> 0 | I16: =IF(Nomina!BI16="",0,Nomina!BI16) -> 0 | J16: =IF(Nomina!BC16="",0,Nomina!BC16) -> 0 | K16: =IF(Nomina!Q16="",0,Nomina!Q16) -> 0 | L16: =IF(Nomina!R16="",0,Nomina!R16) -> 0 | M16: =IF(Nomina!R16="",0,Nomina!S16) -> 0 | N16: =IF(Nomina!V16="",0,Nomina!V16) -> 0 | O16: =IF(Nomina!W16="",0,Nomina!W16) -> 0 | P16: =IF(Nomina!X16="",0,Nomina!X16) -> 0
B17: 12 | C17: =IF(Nomina!B17="",0,Nomina!B17) -> 0 | D17: =IF(Nomina!D17="",0,Nomina!D17) -> 0 | E17: =IF(Nomina!AJ17="",0,Nomina!AJ17) -> 0 | F17: =IF(Nomina!E17="",0,Nomina!E17) -> 0 | G17: =IF(Nomina!F17="",0,Nomina!F17) -> 0 | H17: =IF(Nomina!G17="",0,Nomina!G17) -> 0 | I17: =IF(Nomina!BI17="",0,Nomina!BI17) -> 0 | J17: =IF(Nomina!BC17="",0,Nomina!BC17) -> 0 | K17: =IF(Nomina!Q17="",0,Nomina!Q17) -> 0 | L17: =IF(Nomina!R17="",0,Nomina!R17) -> 0 | M17: =IF(Nomina!R17="",0,Nomina!S17) -> 0 | N17: =IF(Nomina!V17="",0,Nomina!V17) -> 0 | O17: =IF(Nomina!W17="",0,Nomina!W17) -> 0 | P17: =IF(Nomina!X17="",0,Nomina!X17) -> 0
B18: 13 | C18: =IF(Nomina!B18="",0,Nomina!B18) -> 0 | D18: =IF(Nomina!D18="",0,Nomina!D18) -> 0 | E18: =IF(Nomina!AJ18="",0,Nomina!AJ18) -> 0 | F18: =IF(Nomina!E18="",0,Nomina!E18) -> 0 | G18: =IF(Nomina!F18="",0,Nomina!F18) -> 0 | H18: =IF(Nomina!G18="",0,Nomina!G18) -> 0 | I18: =IF(Nomina!BI18="",0,Nomina!BI18) -> 0 | J18: =IF(Nomina!BC18="",0,Nomina!BC18) -> 0 | K18: =IF(Nomina!Q18="",0,Nomina!Q18) -> 0 | L18: =IF(Nomina!R18="",0,Nomina!R18) -> 0 | M18: =IF(Nomina!R18="",0,Nomina!S18) -> 0 | N18: =IF(Nomina!V18="",0,Nomina!V18) -> 0 | O18: =IF(Nomina!W18="",0,Nomina!W18) -> 0 | P18: =IF(Nomina!X18="",0,Nomina!X18) -> 0
B19: 14 | C19: =IF(Nomina!B19="",0,Nomina!B19) -> 0 | D19: =IF(Nomina!D19="",0,Nomina!D19) -> 0 | E19: =IF(Nomina!AJ19="",0,Nomina!AJ19) -> 0 | F19: =IF(Nomina!E19="",0,Nomina!E19) -> 0 | G19: =IF(Nomina!F19="",0,Nomina!F19) -> 0 | H19: =IF(Nomina!G19="",0,Nomina!G19) -> 0 | I19: =IF(Nomina!BI19="",0,Nomina!BI19) -> 0 | J19: =IF(Nomina!BC19="",0,Nomina!BC19) -> 0 | K19: =IF(Nomina!Q19="",0,Nomina!Q19) -> 0 | L19: =IF(Nomina!R19="",0,Nomina!R19) -> 0 | M19: =IF(Nomina!R19="",0,Nomina!S19) -> 0 | N19: =IF(Nomina!V19="",0,Nomina!V19) -> 0 | O19: =IF(Nomina!W19="",0,Nomina!W19) -> 0 | P19: =IF(Nomina!X19="",0,Nomina!X19) -> 0
B20: 15 | C20: =IF(Nomina!B20="",0,Nomina!B20) -> 0 | D20: =IF(Nomina!D20="",0,Nomina!D20) -> 0 | E20: =IF(Nomina!AJ20="",0,Nomina!AJ20) -> 0 | F20: =IF(Nomina!E20="",0,Nomina!E20) -> 0 | G20: =IF(Nomina!F20="",0,Nomina!F20) -> 0 | H20: =IF(Nomina!G20="",0,Nomina!G20) -> 0 | I20: =IF(Nomina!BI20="",0,Nomina!BI20) -> 0 | J20: =IF(Nomina!BC20="",0,Nomina!BC20) -> 0 | K20: =IF(Nomina!Q20="",0,Nomina!Q20) -> 0 | L20: =IF(Nomina!R20="",0,Nomina!R20) -> 0 | M20: =IF(Nomina!R20="",0,Nomina!S20) -> 0 | N20: =IF(Nomina!V20="",0,Nomina!V20) -> 0 | O20: =IF(Nomina!W20="",0,Nomina!W20) -> 0 | P20: =IF(Nomina!X20="",0,Nomina!X20) -> 0
B21: 16 | C21: =IF(Nomina!B21="",0,Nomina!B21) -> 0 | D21: =IF(Nomina!D21="",0,Nomina!D21) -> 0 | E21: =IF(Nomina!AJ21="",0,Nomina!AJ21) -> 0 | F21: =IF(Nomina!E21="",0,Nomina!E21) -> 0 | G21: =IF(Nomina!F21="",0,Nomina!F21) -> 0 | H21: =IF(Nomina!G21="",0,Nomina!G21) -> 0 | I21: =IF(Nomina!BI21="",0,Nomina!BI21) -> 0 | J21: =IF(Nomina!BC21="",0,Nomina!BC21) -> 0 | K21: =IF(Nomina!Q21="",0,Nomina!Q21) -> 0 | L21: =IF(Nomina!R21="",0,Nomina!R21) -> 0 | M21: =IF(Nomina!R21="",0,Nomina!S21) -> 0 | N21: =IF(Nomina!V21="",0,Nomina!V21) -> 0 | O21: =IF(Nomina!W21="",0,Nomina!W21) -> 0 | P21: =IF(Nomina!X21="",0,Nomina!X21) -> 0
B22: 17 | C22: =IF(Nomina!B22="",0,Nomina!B22) -> 0 | D22: =IF(Nomina!D22="",0,Nomina!D22) -> 0 | E22: =IF(Nomina!AJ22="",0,Nomina!AJ22) -> 0 | F22: =IF(Nomina!E22="",0,Nomina!E22) -> 0 | G22: =IF(Nomina!F22="",0,Nomina!F22) -> 0 | H22: =IF(Nomina!G22="",0,Nomina!G22) -> 0 | I22: =IF(Nomina!BI22="",0,Nomina!BI22) -> 0 | J22: =IF(Nomina!BC22="",0,Nomina!BC22) -> 0 | K22: =IF(Nomina!Q22="",0,Nomina!Q22) -> 0 | L22: =IF(Nomina!R22="",0,Nomina!R22) -> 0 | M22: =IF(Nomina!R22="",0,Nomina!S22) -> 0 | N22: =IF(Nomina!V22="",0,Nomina!V22) -> 0 | O22: =IF(Nomina!W22="",0,Nomina!W22) -> 0 | P22: =IF(Nomina!X22="",0,Nomina!X22) -> 0
B23: 18 | C23: =IF(Nomina!B23="",0,Nomina!B23) -> 0 | D23: =IF(Nomina!D23="",0,Nomina!D23) -> 0 | E23: =IF(Nomina!AJ23="",0,Nomina!AJ23) -> 0 | F23: =IF(Nomina!E23="",0,Nomina!E23) -> 0 | G23: =IF(Nomina!F23="",0,Nomina!F23) -> 0 | H23: =IF(Nomina!G23="",0,Nomina!G23) -> 0 | I23: =IF(Nomina!BI23="",0,Nomina!BI23) -> 0 | J23: =IF(Nomina!BC23="",0,Nomina!BC23) -> 0 | K23: =IF(Nomina!Q23="",0,Nomina!Q23) -> 0 | L23: =IF(Nomina!R23="",0,Nomina!R23) -> 0 | M23: =IF(Nomina!R23="",0,Nomina!S23) -> 0 | N23: =IF(Nomina!V23="",0,Nomina!V23) -> 0 | O23: =IF(Nomina!W23="",0,Nomina!W23) -> 0 | P23: =IF(Nomina!X23="",0,Nomina!X23) -> 0
B24: 19 | C24: =IF(Nomina!B24="",0,Nomina!B24) -> 0 | D24: =IF(Nomina!D24="",0,Nomina!D24) -> 0 | E24: =IF(Nomina!AJ24="",0,Nomina!AJ24) -> 0 | F24: =IF(Nomina!E24="",0,Nomina!E24) -> 0 | G24: =IF(Nomina!F24="",0,Nomina!F24) -> 0 | H24: =IF(Nomina!G24="",0,Nomina!G24) -> 0 | I24: =IF(Nomina!BI24="",0,Nomina!BI24) -> 0 | J24: =IF(Nomina!BC24="",0,Nomina!BC24) -> 0 | K24: =IF(Nomina!Q24="",0,Nomina!Q24) -> 0 | L24: =IF(Nomina!R24="",0,Nomina!R24) -> 0 | M24: =IF(Nomina!R24="",0,Nomina!S24) -> 0 | N24: =IF(Nomina!V24="",0,Nomina!V24) -> 0 | O24: =IF(Nomina!W24="",0,Nomina!W24) -> 0 | P24: =IF(Nomina!X24="",0,Nomina!X24) -> 0
B25: 20 | C25: =IF(Nomina!B25="",0,Nomina!B25) -> 0 | D25: =IF(Nomina!D25="",0,Nomina!D25) -> 0 | E25: =IF(Nomina!AJ25="",0,Nomina!AJ25) -> 0 | F25: =IF(Nomina!E25="",0,Nomina!E25) -> 0 | G25: =IF(Nomina!F25="",0,Nomina!F25) -> 0 | H25: =IF(Nomina!G25="",0,Nomina!G25) -> 0 | I25: =IF(Nomina!BI25="",0,Nomina!BI25) -> 0 | J25: =IF(Nomina!BC25="",0,Nomina!BC25) -> 0 | K25: =IF(Nomina!Q25="",0,Nomina!Q25) -> 0 | L25: =IF(Nomina!R25="",0,Nomina!R25) -> 0 | M25: =IF(Nomina!R25="",0,Nomina!S25) -> 0 | N25: =IF(Nomina!V25="",0,Nomina!V25) -> 0 | O25: =IF(Nomina!W25="",0,Nomina!W25) -> 0 | P25: =IF(Nomina!X25="",0,Nomina!X25) -> 0
B26: 21 | C26: =IF(Nomina!B26="",0,Nomina!B26) -> 0 | D26: =IF(Nomina!D26="",0,Nomina!D26) -> 0 | E26: =IF(Nomina!AJ26="",0,Nomina!AJ26) -> 0 | F26: =IF(Nomina!E26="",0,Nomina!E26) -> 0 | G26: =IF(Nomina!F26="",0,Nomina!F26) -> 0 | H26: =IF(Nomina!G26="",0,Nomina!G26) -> 0 | I26: =IF(Nomina!BI26="",0,Nomina!BI26) -> 0 | J26: =IF(Nomina!BC26="",0,Nomina!BC26) -> 0 | K26: =IF(Nomina!Q26="",0,Nomina!Q26) -> 0 | L26: =IF(Nomina!R26="",0,Nomina!R26) -> 0 | M26: =IF(Nomina!R26="",0,Nomina!S26) -> 0 | N26: =IF(Nomina!V26="",0,Nomina!V26) -> 0 | O26: =IF(Nomina!W26="",0,Nomina!W26) -> 0 | P26: =IF(Nomina!X26="",0,Nomina!X26) -> 0
B27: 22 | C27: =IF(Nomina!B27="",0,Nomina!B27) -> 0 | D27: =IF(Nomina!D27="",0,Nomina!D27) -> 0 | E27: =IF(Nomina!AJ27="",0,Nomina!AJ27) -> 0 | F27: =IF(Nomina!E27="",0,Nomina!E27) -> 0 | G27: =IF(Nomina!F27="",0,Nomina!F27) -> 0 | H27: =IF(Nomina!G27="",0,Nomina!G27) -> 0 | I27: =IF(Nomina!BI27="",0,Nomina!BI27) -> 0 | J27: =IF(Nomina!BC27="",0,Nomina!BC27) -> 0 | K27: =IF(Nomina!Q27="",0,Nomina!Q27) -> 0 | L27: =IF(Nomina!R27="",0,Nomina!R27) -> 0 | M27: =IF(Nomina!R27="",0,Nomina!S27) -> 0 | N27: =IF(Nomina!V27="",0,Nomina!V27) -> 0 | O27: =IF(Nomina!W27="",0,Nomina!W27) -> 0 | P27: =IF(Nomina!X27="",0,Nomina!X27) -> 0
B28: 23 | C28: =IF(Nomina!B28="",0,Nomina!B28) -> 0 | D28: =IF(Nomina!D28="",0,Nomina!D28) -> 0 | E28: =IF(Nomina!AJ28="",0,Nomina!AJ28) -> 0 | F28: =IF(Nomina!E28="",0,Nomina!E28) -> 0 | G28: =IF(Nomina!F28="",0,Nomina!F28) -> 0 | H28: =IF(Nomina!G28="",0,Nomina!G28) -> 0 | I28: =IF(Nomina!BI28="",0,Nomina!BI28) -> 0 | J28: =IF(Nomina!BC28="",0,Nomina!BC28) -> 0 | K28: =IF(Nomina!Q28="",0,Nomina!Q28) -> 0 | L28: =IF(Nomina!R28="",0,Nomina!R28) -> 0 | M28: =IF(Nomina!R28="",0,Nomina!S28) -> 0 | N28: =IF(Nomina!V28="",0,Nomina!V28) -> 0 | O28: =IF(Nomina!W28="",0,Nomina!W28) -> 0 | P28: =IF(Nomina!X28="",0,Nomina!X28) -> 0
B29: 24 | C29: =IF(Nomina!B29="",0,Nomina!B29) -> 0 | D29: =IF(Nomina!D29="",0,Nomina!D29) -> 0 | E29: =IF(Nomina!AJ29="",0,Nomina!AJ29) -> 0 | F29: =IF(Nomina!E29="",0,Nomina!E29) -> 0 | G29: =IF(Nomina!F29="",0,Nomina!F29) -> 0 | H29: =IF(Nomina!G29="",0,Nomina!G29) -> 0 | I29: =IF(Nomina!BI29="",0,Nomina!BI29) -> 0 | J29: =IF(Nomina!BC29="",0,Nomina!BC29) -> 0 | K29: =IF(Nomina!Q29="",0,Nomina!Q29) -> 0 | L29: =IF(Nomina!R29="",0,Nomina!R29) -> 0 | M29: =IF(Nomina!R29="",0,Nomina!S29) -> 0 | N29: =IF(Nomina!V29="",0,Nomina!V29) -> 0 | O29: =IF(Nomina!W29="",0,Nomina!W29) -> 0 | P29: =IF(Nomina!X29="",0,Nomina!X29) -> 0
B30: 25 | C30: =IF(Nomina!B30="",0,Nomina!B30) -> 0 | D30: =IF(Nomina!D30="",0,Nomina!D30) -> 0 | E30: =IF(Nomina!AJ30="",0,Nomina!AJ30) -> 0 | F30: =IF(Nomina!E30="",0,Nomina!E30) -> 0 | G30: =IF(Nomina!F30="",0,Nomina!F30) -> 0 | H30: =IF(Nomina!G30="",0,Nomina!G30) -> 0 | I30: =IF(Nomina!BI30="",0,Nomina!BI30) -> 0 | J30: =IF(Nomina!BC30="",0,Nomina!BC30) -> 0 | K30: =IF(Nomina!Q30="",0,Nomina!Q30) -> 0 | L30: =IF(Nomina!R30="",0,Nomina!R30) -> 0 | M30: =IF(Nomina!R30="",0,Nomina!S30) -> 0 | N30: =IF(Nomina!V30="",0,Nomina!V30) -> 0 | O30: =IF(Nomina!W30="",0,Nomina!W30) -> 0 | P30: =IF(Nomina!X30="",0,Nomina!X30) -> 0
B31: 26 | C31: =IF(Nomina!B31="",0,Nomina!B31) -> 0 | D31: =IF(Nomina!D31="",0,Nomina!D31) -> 0 | E31: =IF(Nomina!AJ31="",0,Nomina!AJ31) -> 0 | F31: =IF(Nomina!E31="",0,Nomina!E31) -> 0 | G31: =IF(Nomina!F31="",0,Nomina!F31) -> 0 | H31: =IF(Nomina!G31="",0,Nomina!G31) -> 0 | I31: =IF(Nomina!BI31="",0,Nomina!BI31) -> 0 | J31: =IF(Nomina!BC31="",0,Nomina!BC31) -> 0 | K31: =IF(Nomina!Q31="",0,Nomina!Q31) -> 0 | L31: =IF(Nomina!R31="",0,Nomina!R31) -> 0 | M31: =IF(Nomina!R31="",0,Nomina!S31) -> 0 | N31: =IF(Nomina!V31="",0,Nomina!V31) -> 0 | O31: =IF(Nomina!W31="",0,Nomina!W31) -> 0 | P31: =IF(Nomina!X31="",0,Nomina!X31) -> 0
B32: 27 | C32: =IF(Nomina!B32="",0,Nomina!B32) -> 0 | D32: =IF(Nomina!D32="",0,Nomina!D32) -> 0 | E32: =IF(Nomina!AJ32="",0,Nomina!AJ32) -> 0 | F32: =IF(Nomina!E32="",0,Nomina!E32) -> 0 | G32: =IF(Nomina!F32="",0,Nomina!F32) -> 0 | H32: =IF(Nomina!G32="",0,Nomina!G32) -> 0 | I32: =IF(Nomina!BI32="",0,Nomina!BI32) -> 0 | J32: =IF(Nomina!BC32="",0,Nomina!BC32) -> 0 | K32: =IF(Nomina!Q32="",0,Nomina!Q32) -> 0 | L32: =IF(Nomina!R32="",0,Nomina!R32) -> 0 | M32: =IF(Nomina!R32="",0,Nomina!S32) -> 0 | N32: =IF(Nomina!V32="",0,Nomina!V32) -> 0 | O32: =IF(Nomina!W32="",0,Nomina!W32) -> 0 | P32: =IF(Nomina!X32="",0,Nomina!X32) -> 0
B33: 28 | C33: =IF(Nomina!B33="",0,Nomina!B33) -> 0 | D33: =IF(Nomina!D33="",0,Nomina!D33) -> 0 | E33: =IF(Nomina!AJ33="",0,Nomina!AJ33) -> 0 | F33: =IF(Nomina!E33="",0,Nomina!E33) -> 0 | G33: =IF(Nomina!F33="",0,Nomina!F33) -> 0 | H33: =IF(Nomina!G33="",0,Nomina!G33) -> 0 | I33: =IF(Nomina!BI33="",0,Nomina!BI33) -> 0 | J33: =IF(Nomina!BC33="",0,Nomina!BC33) -> 0 | K33: =IF(Nomina!Q33="",0,Nomina!Q33) -> 0 | L33: =IF(Nomina!R33="",0,Nomina!R33) -> 0 | M33: =IF(Nomina!R33="",0,Nomina!S33) -> 0 | N33: =IF(Nomina!V33="",0,Nomina!V33) -> 0 | O33: =IF(Nomina!W33="",0,Nomina!W33) -> 0 | P33: =IF(Nomina!X33="",0,Nomina!X33) -> 0
B34: 29 | C34: =IF(Nomina!B34="",0,Nomina!B34) -> 0 | D34: =IF(Nomina!D34="",0,Nomina!D34) -> 0 | E34: =IF(Nomina!AJ34="",0,Nomina!AJ34) -> 0 | F34: =IF(Nomina!E34="",0,Nomina!E34) -> 0 | G34: =IF(Nomina!F34="",0,Nomina!F34) -> 0 | H34: =IF(Nomina!G34="",0,Nomina!G34) -> 0 | I34: =IF(Nomina!BI34="",0,Nomina!BI34) -> 0 | J34: =IF(Nomina!BC34="",0,Nomina!BC34) -> 0 | K34: =IF(Nomina!Q34="",0,Nomina!Q34) -> 0 | L34: =IF(Nomina!R34="",0,Nomina!R34) -> 0 | M34: =IF(Nomina!R34="",0,Nomina!S34) -> 0 | N34: =IF(Nomina!V34="",0,Nomina!V34) -> 0 | O34: =IF(Nomina!W34="",0,Nomina!W34) -> 0 | P34: =IF(Nomina!X34="",0,Nomina!X34) -> 0
B35: 30 | C35: =IF(Nomina!B35="",0,Nomina!B35) -> 0 | D35: =IF(Nomina!D35="",0,Nomina!D35) -> 0 | E35: =IF(Nomina!AJ35="",0,Nomina!AJ35) -> 0 | F35: =IF(Nomina!E35="",0,Nomina!E35) -> 0 | G35: =IF(Nomina!F35="",0,Nomina!F35) -> 0 | H35: =IF(Nomina!G35="",0,Nomina!G35) -> 0 | I35: =IF(Nomina!BI35="",0,Nomina!BI35) -> 0 | J35: =IF(Nomina!BC35="",0,Nomina!BC35) -> 0 | K35: =IF(Nomina!Q35="",0,Nomina!Q35) -> 0 | L35: =IF(Nomina!R35="",0,Nomina!R35) -> 0 | M35: =IF(Nomina!R35="",0,Nomina!S35) -> 0 | N35: =IF(Nomina!V35="",0,Nomina!V35) -> 0 | O35: =IF(Nomina!W35="",0,Nomina!W35) -> 0 | P35: =IF(Nomina!X35="",0,Nomina!X35) -> 0
B36: 31 | C36: =IF(Nomina!B36="",0,Nomina!B36) -> 0 | D36: =IF(Nomina!D36="",0,Nomina!D36) -> 0 | E36: =IF(Nomina!AJ36="",0,Nomina!AJ36) -> 0 | F36: =IF(Nomina!E36="",0,Nomina!E36) -> 0 | G36: =IF(Nomina!F36="",0,Nomina!F36) -> 0 | H36: =IF(Nomina!G36="",0,Nomina!G36) -> 0 | I36: =IF(Nomina!BI36="",0,Nomina!BI36) -> 0 | J36: =IF(Nomina!BC36="",0,Nomina!BC36) -> 0 | K36: =IF(Nomina!Q36="",0,Nomina!Q36) -> 0 | L36: =IF(Nomina!R36="",0,Nomina!R36) -> 0 | M36: =IF(Nomina!R36="",0,Nomina!S36) -> 0 | N36: =IF(Nomina!V36="",0,Nomina!V36) -> 0 | O36: =IF(Nomina!W36="",0,Nomina!W36) -> 0 | P36: =IF(Nomina!X36="",0,Nomina!X36) -> 0
B37: 32 | C37: =IF(Nomina!B37="",0,Nomina!B37) -> 0 | D37: =IF(Nomina!D37="",0,Nomina!D37) -> 0 | E37: =IF(Nomina!AJ37="",0,Nomina!AJ37) -> 0 | F37: =IF(Nomina!E37="",0,Nomina!E37) -> 0 | G37: =IF(Nomina!F37="",0,Nomina!F37) -> 0 | H37: =IF(Nomina!G37="",0,Nomina!G37) -> 0 | I37: =IF(Nomina!BI37="",0,Nomina!BI37) -> 0 | J37: =IF(Nomina!BC37="",0,Nomina!BC37) -> 0 | K37: =IF(Nomina!Q37="",0,Nomina!Q37) -> 0 | L37: =IF(Nomina!R37="",0,Nomina!R37) -> 0 | M37: =IF(Nomina!R37="",0,Nomina!S37) -> 0 | N37: =IF(Nomina!V37="",0,Nomina!V37) -> 0 | O37: =IF(Nomina!W37="",0,Nomina!W37) -> 0 | P37: =IF(Nomina!X37="",0,Nomina!X37) -> 0
B38: 33 | C38: =IF(Nomina!B38="",0,Nomina!B38) -> 0 | D38: =IF(Nomina!D38="",0,Nomina!D38) -> 0 | E38: =IF(Nomina!AJ38="",0,Nomina!AJ38) -> 0 | F38: =IF(Nomina!E38="",0,Nomina!E38) -> 0 | G38: =IF(Nomina!F38="",0,Nomina!F38) -> 0 | H38: =IF(Nomina!G38="",0,Nomina!G38) -> 0 | I38: =IF(Nomina!BI38="",0,Nomina!BI38) -> 0 | J38: =IF(Nomina!BC38="",0,Nomina!BC38) -> 0 | K38: =IF(Nomina!Q38="",0,Nomina!Q38) -> 0 | L38: =IF(Nomina!R38="",0,Nomina!R38) -> 0 | M38: =IF(Nomina!R38="",0,Nomina!S38) -> 0 | N38: =IF(Nomina!V38="",0,Nomina!V38) -> 0 | O38: =IF(Nomina!W38="",0,Nomina!W38) -> 0 | P38: =IF(Nomina!X38="",0,Nomina!X38) -> 0
B39: 34 | C39: =IF(Nomina!B39="",0,Nomina!B39) -> 0 | D39: =IF(Nomina!D39="",0,Nomina!D39) -> 0 | E39: =IF(Nomina!AJ39="",0,Nomina!AJ39) -> 0 | F39: =IF(Nomina!E39="",0,Nomina!E39) -> 0 | G39: =IF(Nomina!F39="",0,Nomina!F39) -> 0 | H39: =IF(Nomina!G39="",0,Nomina!G39) -> 0 | I39: =IF(Nomina!BI39="",0,Nomina!BI39) -> 0 | J39: =IF(Nomina!BC39="",0,Nomina!BC39) -> 0 | K39: =IF(Nomina!Q39="",0,Nomina!Q39) -> 0 | L39: =IF(Nomina!R39="",0,Nomina!R39) -> 0 | M39: =IF(Nomina!R39="",0,Nomina!S39) -> 0 | N39: =IF(Nomina!V39="",0,Nomina!V39) -> 0 | O39: =IF(Nomina!W39="",0,Nomina!W39) -> 0 | P39: =IF(Nomina!X39="",0,Nomina!X39) -> 0
B40: 35 | C40: =IF(Nomina!B40="",0,Nomina!B40) -> 0 | D40: =IF(Nomina!D40="",0,Nomina!D40) -> 0 | E40: =IF(Nomina!AJ40="",0,Nomina!AJ40) -> 0 | F40: =IF(Nomina!E40="",0,Nomina!E40) -> 0 | G40: =IF(Nomina!F40="",0,Nomina!F40) -> 0 | H40: =IF(Nomina!G40="",0,Nomina!G40) -> 0 | I40: =IF(Nomina!BI40="",0,Nomina!BI40) -> 0 | J40: =IF(Nomina!BC40="",0,Nomina!BC40) -> 0 | K40: =IF(Nomina!Q40="",0,Nomina!Q40) -> 0 | L40: =IF(Nomina!R40="",0,Nomina!R40) -> 0 | M40: =IF(Nomina!R40="",0,Nomina!S40) -> 0 | N40: =IF(Nomina!V40="",0,Nomina!V40) -> 0 | O40: =IF(Nomina!W40="",0,Nomina!W40) -> 0 | P40: =IF(Nomina!X40="",0,Nomina!X40) -> 0
B41: 36 | C41: =IF(Nomina!B41="",0,Nomina!B41) -> 0 | D41: =IF(Nomina!D41="",0,Nomina!D41) -> 0 | E41: =IF(Nomina!AJ41="",0,Nomina!AJ41) -> 0 | F41: =IF(Nomina!E41="",0,Nomina!E41) -> 0 | G41: =IF(Nomina!F41="",0,Nomina!F41) -> 0 | H41: =IF(Nomina!G41="",0,Nomina!G41) -> 0 | I41: =IF(Nomina!BI41="",0,Nomina!BI41) -> 0 | J41: =IF(Nomina!BC41="",0,Nomina!BC41) -> 0 | K41: =IF(Nomina!Q41="",0,Nomina!Q41) -> 0 | L41: =IF(Nomina!R41="",0,Nomina!R41) -> 0 | M41: =IF(Nomina!R41="",0,Nomina!S41) -> 0 | N41: =IF(Nomina!V41="",0,Nomina!V41) -> 0 | O41: =IF(Nomina!W41="",0,Nomina!W41) -> 0 | P41: =IF(Nomina!X41="",0,Nomina!X41) -> 0
B42: 37 | C42: =IF(Nomina!B42="",0,Nomina!B42) -> 0 | D42: =IF(Nomina!D42="",0,Nomina!D42) -> 0 | E42: =IF(Nomina!AJ42="",0,Nomina!AJ42) -> 0 | F42: =IF(Nomina!E42="",0,Nomina!E42) -> 0 | G42: =IF(Nomina!F42="",0,Nomina!F42) -> 0 | H42: =IF(Nomina!G42="",0,Nomina!G42) -> 0 | I42: =IF(Nomina!BI42="",0,Nomina!BI42) -> 0 | J42: =IF(Nomina!BC42="",0,Nomina!BC42) -> 0 | K42: =IF(Nomina!Q42="",0,Nomina!Q42) -> 0 | L42: =IF(Nomina!R42="",0,Nomina!R42) -> 0 | M42: =IF(Nomina!R42="",0,Nomina!S42) -> 0 | N42: =IF(Nomina!V42="",0,Nomina!V42) -> 0 | O42: =IF(Nomina!W42="",0,Nomina!W42) -> 0 | P42: =IF(Nomina!X42="",0,Nomina!X42) -> 0
B43: 38 | C43: =IF(Nomina!B43="",0,Nomina!B43) -> 0 | D43: =IF(Nomina!D43="",0,Nomina!D43) -> 0 | E43: =IF(Nomina!AJ43="",0,Nomina!AJ43) -> 0 | F43: =IF(Nomina!E43="",0,Nomina!E43) -> 0 | G43: =IF(Nomina!F43="",0,Nomina!F43) -> 0 | H43: =IF(Nomina!G43="",0,Nomina!G43) -> 0 | I43: =IF(Nomina!BI43="",0,Nomina!BI43) -> 0 | J43: =IF(Nomina!BC43="",0,Nomina!BC43) -> 0 | K43: =IF(Nomina!Q43="",0,Nomina!Q43) -> 0 | L43: =IF(Nomina!R43="",0,Nomina!R43) -> 0 | M43: =IF(Nomina!R43="",0,Nomina!S43) -> 0 | N43: =IF(Nomina!V43="",0,Nomina!V43) -> 0 | O43: =IF(Nomina!W43="",0,Nomina!W43) -> 0 | P43: =IF(Nomina!X43="",0,Nomina!X43) -> 0
B44: 39 | C44: =IF(Nomina!B44="",0,Nomina!B44) -> 0 | D44: =IF(Nomina!D44="",0,Nomina!D44) -> 0 | E44: =IF(Nomina!AJ44="",0,Nomina!AJ44) -> 0 | F44: =IF(Nomina!E44="",0,Nomina!E44) -> 0 | G44: =IF(Nomina!F44="",0,Nomina!F44) -> 0 | H44: =IF(Nomina!G44="",0,Nomina!G44) -> 0 | I44: =IF(Nomina!BI44="",0,Nomina!BI44) -> 0 | J44: =IF(Nomina!BC44="",0,Nomina!BC44) -> 0 | K44: =IF(Nomina!Q44="",0,Nomina!Q44) -> 0 | L44: =IF(Nomina!R44="",0,Nomina!R44) -> 0 | M44: =IF(Nomina!R44="",0,Nomina!S44) -> 0 | N44: =IF(Nomina!V44="",0,Nomina!V44) -> 0 | O44: =IF(Nomina!W44="",0,Nomina!W44) -> 0 | P44: =IF(Nomina!X44="",0,Nomina!X44) -> 0
B45: 40 | C45: =IF(Nomina!B45="",0,Nomina!B45) -> 0 | D45: =IF(Nomina!D45="",0,Nomina!D45) -> 0 | E45: =IF(Nomina!AJ45="",0,Nomina!AJ45) -> 0 | F45: =IF(Nomina!E45="",0,Nomina!E45) -> 0 | G45: =IF(Nomina!F45="",0,Nomina!F45) -> 0 | H45: =IF(Nomina!G45="",0,Nomina!G45) -> 0 | I45: =IF(Nomina!BI45="",0,Nomina!BI45) -> 0 | J45: =IF(Nomina!BC45="",0,Nomina!BC45) -> 0 | K45: =IF(Nomina!Q45="",0,Nomina!Q45) -> 0 | L45: =IF(Nomina!R45="",0,Nomina!R45) -> 0 | M45: =IF(Nomina!R45="",0,Nomina!S45) -> 0 | N45: =IF(Nomina!V45="",0,Nomina!V45) -> 0 | O45: =IF(Nomina!W45="",0,Nomina!W45) -> 0 | P45: =IF(Nomina!X45="",0,Nomina!X45) -> 0
B46: 41 | C46: =IF(Nomina!B46="",0,Nomina!B46) -> 0 | D46: =IF(Nomina!D46="",0,Nomina!D46) -> 0 | E46: =IF(Nomina!AJ46="",0,Nomina!AJ46) -> 0 | F46: =IF(Nomina!E46="",0,Nomina!E46) -> 0 | G46: =IF(Nomina!F46="",0,Nomina!F46) -> 0 | H46: =IF(Nomina!G46="",0,Nomina!G46) -> 0 | I46: =IF(Nomina!BI46="",0,Nomina!BI46) -> 0 | J46: =IF(Nomina!BC46="",0,Nomina!BC46) -> 0 | K46: =IF(Nomina!Q46="",0,Nomina!Q46) -> 0 | L46: =IF(Nomina!R46="",0,Nomina!R46) -> 0 | M46: =IF(Nomina!R46="",0,Nomina!S46) -> 0 | N46: =IF(Nomina!V46="",0,Nomina!V46) -> 0 | O46: =IF(Nomina!W46="",0,Nomina!W46) -> 0 | P46: =IF(Nomina!X46="",0,Nomina!X46) -> 0
B47: 42 | C47: =IF(Nomina!B47="",0,Nomina!B47) -> 0 | D47: =IF(Nomina!D47="",0,Nomina!D47) -> 0 | E47: =IF(Nomina!AJ47="",0,Nomina!AJ47) -> 0 | F47: =IF(Nomina!E47="",0,Nomina!E47) -> 0 | G47: =IF(Nomina!F47="",0,Nomina!F47) -> 0 | H47: =IF(Nomina!G47="",0,Nomina!G47) -> 0 | I47: =IF(Nomina!BI47="",0,Nomina!BI47) -> 0 | J47: =IF(Nomina!BC47="",0,Nomina!BC47) -> 0 | K47: =IF(Nomina!Q47="",0,Nomina!Q47) -> 0 | L47: =IF(Nomina!R47="",0,Nomina!R47) -> 0 | M47: =IF(Nomina!R47="",0,Nomina!S47) -> 0 | N47: =IF(Nomina!V47="",0,Nomina!V47) -> 0 | O47: =IF(Nomina!W47="",0,Nomina!W47) -> 0 | P47: =IF(Nomina!X47="",0,Nomina!X47) -> 0
B48: 43 | C48: =IF(Nomina!B48="",0,Nomina!B48) -> 0 | D48: =IF(Nomina!D48="",0,Nomina!D48) -> 0 | E48: =IF(Nomina!AJ48="",0,Nomina!AJ48) -> 0 | F48: =IF(Nomina!E48="",0,Nomina!E48) -> 0 | G48: =IF(Nomina!F48="",0,Nomina!F48) -> 0 | H48: =IF(Nomina!G48="",0,Nomina!G48) -> 0 | I48: =IF(Nomina!BI48="",0,Nomina!BI48) -> 0 | J48: =IF(Nomina!BC48="",0,Nomina!BC48) -> 0 | K48: =IF(Nomina!Q48="",0,Nomina!Q48) -> 0 | L48: =IF(Nomina!R48="",0,Nomina!R48) -> 0 | M48: =IF(Nomina!R48="",0,Nomina!S48) -> 0 | N48: =IF(Nomina!V48="",0,Nomina!V48) -> 0 | O48: =IF(Nomina!W48="",0,Nomina!W48) -> 0 | P48: =IF(Nomina!X48="",0,Nomina!X48) -> 0
B49: 44 | C49: =IF(Nomina!B49="",0,Nomina!B49) -> 0 | D49: =IF(Nomina!D49="",0,Nomina!D49) -> 0 | E49: =IF(Nomina!AJ49="",0,Nomina!AJ49) -> 0 | F49: =IF(Nomina!E49="",0,Nomina!E49) -> 0 | G49: =IF(Nomina!F49="",0,Nomina!F49) -> 0 | H49: =IF(Nomina!G49="",0,Nomina!G49) -> 0 | I49: =IF(Nomina!BI49="",0,Nomina!BI49) -> 0 | J49: =IF(Nomina!BC49="",0,Nomina!BC49) -> 0 | K49: =IF(Nomina!Q49="",0,Nomina!Q49) -> 0 | L49: =IF(Nomina!R49="",0,Nomina!R49) -> 0 | M49: =IF(Nomina!R49="",0,Nomina!S49) -> 0 | N49: =IF(Nomina!V49="",0,Nomina!V49) -> 0 | O49: =IF(Nomina!W49="",0,Nomina!W49) -> 0 | P49: =IF(Nomina!X49="",0,Nomina!X49) -> 0
B50: 45 | C50: =IF(Nomina!B50="",0,Nomina!B50) -> 0 | D50: =IF(Nomina!D50="",0,Nomina!D50) -> 0 | E50: =IF(Nomina!AJ50="",0,Nomina!AJ50) -> 0 | F50: =IF(Nomina!E50="",0,Nomina!E50) -> 0 | G50: =IF(Nomina!F50="",0,Nomina!F50) -> 0 | H50: =IF(Nomina!G50="",0,Nomina!G50) -> 0 | I50: =IF(Nomina!BI50="",0,Nomina!BI50) -> 0 | J50: =IF(Nomina!BC50="",0,Nomina!BC50) -> 0 | K50: =IF(Nomina!Q50="",0,Nomina!Q50) -> 0 | L50: =IF(Nomina!R50="",0,Nomina!R50) -> 0 | M50: =IF(Nomina!R50="",0,Nomina!S50) -> 0 | N50: =IF(Nomina!V50="",0,Nomina!V50) -> 0 | O50: =IF(Nomina!W50="",0,Nomina!W50) -> 0 | P50: =IF(Nomina!X50="",0,Nomina!X50) -> 0
B51: 46 | C51: =IF(Nomina!B51="",0,Nomina!B51) -> 0 | D51: =IF(Nomina!D51="",0,Nomina!D51) -> 0 | E51: =IF(Nomina!AJ51="",0,Nomina!AJ51) -> 0 | F51: =IF(Nomina!E51="",0,Nomina!E51) -> 0 | G51: =IF(Nomina!F51="",0,Nomina!F51) -> 0 | H51: =IF(Nomina!G51="",0,Nomina!G51) -> 0 | I51: =IF(Nomina!BI51="",0,Nomina!BI51) -> 0 | J51: =IF(Nomina!BC51="",0,Nomina!BC51) -> 0 | K51: =IF(Nomina!Q51="",0,Nomina!Q51) -> 0 | L51: =IF(Nomina!R51="",0,Nomina!R51) -> 0 | M51: =IF(Nomina!R51="",0,Nomina!S51) -> 0 | N51: =IF(Nomina!V51="",0,Nomina!V51) -> 0 | O51: =IF(Nomina!W51="",0,Nomina!W51) -> 0 | P51: =IF(Nomina!X51="",0,Nomina!X51) -> 0
B52: 47 | C52: =IF(Nomina!B52="",0,Nomina!B52) -> 0 | D52: =IF(Nomina!D52="",0,Nomina!D52) -> 0 | E52: =IF(Nomina!AJ52="",0,Nomina!AJ52) -> 0 | F52: =IF(Nomina!E52="",0,Nomina!E52) -> 0 | G52: =IF(Nomina!F52="",0,Nomina!F52) -> 0 | H52: =IF(Nomina!G52="",0,Nomina!G52) -> 0 | I52: =IF(Nomina!BI52="",0,Nomina!BI52) -> 0 | J52: =IF(Nomina!BC52="",0,Nomina!BC52) -> 0 | K52: =IF(Nomina!Q52="",0,Nomina!Q52) -> 0 | L52: =IF(Nomina!R52="",0,Nomina!R52) -> 0 | M52: =IF(Nomina!R52="",0,Nomina!S52) -> 0 | N52: =IF(Nomina!V52="",0,Nomina!V52) -> 0 | O52: =IF(Nomina!W52="",0,Nomina!W52) -> 0 | P52: =IF(Nomina!X52="",0,Nomina!X52) -> 0
B53: 48 | C53: =IF(Nomina!B53="",0,Nomina!B53) -> 0 | D53: =IF(Nomina!D53="",0,Nomina!D53) -> 0 | E53: =IF(Nomina!AJ53="",0,Nomina!AJ53) -> 0 | F53: =IF(Nomina!E53="",0,Nomina!E53) -> 0 | G53: =IF(Nomina!F53="",0,Nomina!F53) -> 0 | H53: =IF(Nomina!G53="",0,Nomina!G53) -> 0 | I53: =IF(Nomina!BI53="",0,Nomina!BI53) -> 0 | J53: =IF(Nomina!BC53="",0,Nomina!BC53) -> 0 | K53: =IF(Nomina!Q53="",0,Nomina!Q53) -> 0 | L53: =IF(Nomina!R53="",0,Nomina!R53) -> 0 | M53: =IF(Nomina!R53="",0,Nomina!S53) -> 0 | N53: =IF(Nomina!V53="",0,Nomina!V53) -> 0 | O53: =IF(Nomina!W53="",0,Nomina!W53) -> 0 | P53: =IF(Nomina!X53="",0,Nomina!X53) -> 0
B54: 49 | C54: =IF(Nomina!B54="",0,Nomina!B54) -> 0 | D54: =IF(Nomina!D54="",0,Nomina!D54) -> 0 | E54: =IF(Nomina!AJ54="",0,Nomina!AJ54) -> 0 | F54: =IF(Nomina!E54="",0,Nomina!E54) -> 0 | G54: =IF(Nomina!F54="",0,Nomina!F54) -> 0 | H54: =IF(Nomina!G54="",0,Nomina!G54) -> 0 | I54: =IF(Nomina!BI54="",0,Nomina!BI54) -> 0 | J54: =IF(Nomina!BC54="",0,Nomina!BC54) -> 0 | K54: =IF(Nomina!Q54="",0,Nomina!Q54) -> 0 | L54: =IF(Nomina!R54="",0,Nomina!R54) -> 0 | M54: =IF(Nomina!R54="",0,Nomina!S54) -> 0 | N54: =IF(Nomina!V54="",0,Nomina!V54) -> 0 | O54: =IF(Nomina!W54="",0,Nomina!W54) -> 0 | P54: =IF(Nomina!X54="",0,Nomina!X54) -> 0
B55: 50 | C55: =IF(Nomina!B55="",0,Nomina!B55) -> 0 | D55: =IF(Nomina!D55="",0,Nomina!D55) -> 0 | E55: =IF(Nomina!AJ55="",0,Nomina!AJ55) -> 0 | F55: =IF(Nomina!E55="",0,Nomina!E55) -> 0 | G55: =IF(Nomina!F55="",0,Nomina!F55) -> 0 | H55: =IF(Nomina!G55="",0,Nomina!G55) -> 0 | I55: =IF(Nomina!BI55="",0,Nomina!BI55) -> 0 | J55: =IF(Nomina!BC55="",0,Nomina!BC55) -> 0 | K55: =IF(Nomina!Q55="",0,Nomina!Q55) -> 0 | L55: =IF(Nomina!R55="",0,Nomina!R55) -> 0 | M55: =IF(Nomina!R55="",0,Nomina!S55) -> 0 | N55: =IF(Nomina!V55="",0,Nomina!V55) -> 0 | O55: =IF(Nomina!W55="",0,Nomina!W55) -> 0 | P55: =IF(Nomina!X55="",0,Nomina!X55) -> 0
B56: 51 | C56: =IF(Nomina!B56="",0,Nomina!B56) -> 0 | D56: =IF(Nomina!D56="",0,Nomina!D56) -> 0 | E56: =IF(Nomina!AJ56="",0,Nomina!AJ56) -> 0 | F56: =IF(Nomina!E56="",0,Nomina!E56) -> 0 | G56: =IF(Nomina!F56="",0,Nomina!F56) -> 0 | H56: =IF(Nomina!G56="",0,Nomina!G56) -> 0 | I56: =IF(Nomina!BI56="",0,Nomina!BI56) -> 0 | J56: =IF(Nomina!BC56="",0,Nomina!BC56) -> 0 | K56: =IF(Nomina!Q56="",0,Nomina!Q56) -> 0 | L56: =IF(Nomina!R56="",0,Nomina!R56) -> 0 | M56: =IF(Nomina!R56="",0,Nomina!S56) -> 0 | N56: =IF(Nomina!V56="",0,Nomina!V56) -> 0 | O56: =IF(Nomina!W56="",0,Nomina!W56) -> 0 | P56: =IF(Nomina!X56="",0,Nomina!X56) -> 0
B57: 52 | C57: =IF(Nomina!B57="",0,Nomina!B57) -> 0 | D57: =IF(Nomina!D57="",0,Nomina!D57) -> 0 | E57: =IF(Nomina!AJ57="",0,Nomina!AJ57) -> 0 | F57: =IF(Nomina!E57="",0,Nomina!E57) -> 0 | G57: =IF(Nomina!F57="",0,Nomina!F57) -> 0 | H57: =IF(Nomina!G57="",0,Nomina!G57) -> 0 | I57: =IF(Nomina!BI57="",0,Nomina!BI57) -> 0 | J57: =IF(Nomina!BC57="",0,Nomina!BC57) -> 0 | K57: =IF(Nomina!Q57="",0,Nomina!Q57) -> 0 | L57: =IF(Nomina!R57="",0,Nomina!R57) -> 0 | M57: =IF(Nomina!R57="",0,Nomina!S57) -> 0 | N57: =IF(Nomina!V57="",0,Nomina!V57) -> 0 | O57: =IF(Nomina!W57="",0,Nomina!W57) -> 0 | P57: =IF(Nomina!X57="",0,Nomina!X57) -> 0
B58: 53 | C58: =IF(Nomina!B58="",0,Nomina!B58) -> 0 | D58: =IF(Nomina!D58="",0,Nomina!D58) -> 0 | E58: =IF(Nomina!AJ58="",0,Nomina!AJ58) -> 0 | F58: =IF(Nomina!E58="",0,Nomina!E58) -> 0 | G58: =IF(Nomina!F58="",0,Nomina!F58) -> 0 | H58: =IF(Nomina!G58="",0,Nomina!G58) -> 0 | I58: =IF(Nomina!BI58="",0,Nomina!BI58) -> 0 | J58: =IF(Nomina!BC58="",0,Nomina!BC58) -> 0 | K58: =IF(Nomina!Q58="",0,Nomina!Q58) -> 0 | L58: =IF(Nomina!R58="",0,Nomina!R58) -> 0 | M58: =IF(Nomina!R58="",0,Nomina!S58) -> 0 | N58: =IF(Nomina!V58="",0,Nomina!V58) -> 0 | O58: =IF(Nomina!W58="",0,Nomina!W58) -> 0 | P58: =IF(Nomina!X58="",0,Nomina!X58) -> 0
B59: 54 | C59: =IF(Nomina!B59="",0,Nomina!B59) -> 0 | D59: =IF(Nomina!D59="",0,Nomina!D59) -> 0 | E59: =IF(Nomina!AJ59="",0,Nomina!AJ59) -> 0 | F59: =IF(Nomina!E59="",0,Nomina!E59) -> 0 | G59: =IF(Nomina!F59="",0,Nomina!F59) -> 0 | H59: =IF(Nomina!G59="",0,Nomina!G59) -> 0 | I59: =IF(Nomina!BI59="",0,Nomina!BI59) -> 0 | J59: =IF(Nomina!BC59="",0,Nomina!BC59) -> 0 | K59: =IF(Nomina!Q59="",0,Nomina!Q59) -> 0 | L59: =IF(Nomina!R59="",0,Nomina!R59) -> 0 | M59: =IF(Nomina!R59="",0,Nomina!S59) -> 0 | N59: =IF(Nomina!V59="",0,Nomina!V59) -> 0 | O59: =IF(Nomina!W59="",0,Nomina!W59) -> 0 | P59: =IF(Nomina!X59="",0,Nomina!X59) -> 0
B60: 55 | C60: =IF(Nomina!B60="",0,Nomina!B60) -> 0 | D60: =IF(Nomina!D60="",0,Nomina!D60) -> 0 | E60: =IF(Nomina!AJ60="",0,Nomina!AJ60) -> 0 | F60: =IF(Nomina!E60="",0,Nomina!E60) -> 0 | G60: =IF(Nomina!F60="",0,Nomina!F60) -> 0 | H60: =IF(Nomina!G60="",0,Nomina!G60) -> 0 | I60: =IF(Nomina!BI60="",0,Nomina!BI60) -> 0 | J60: =IF(Nomina!BC60="",0,Nomina!BC60) -> 0 | K60: =IF(Nomina!Q60="",0,Nomina!Q60) -> 0 | L60: =IF(Nomina!R60="",0,Nomina!R60) -> 0 | M60: =IF(Nomina!R60="",0,Nomina!S60) -> 0 | N60: =IF(Nomina!V60="",0,Nomina!V60) -> 0 | O60: =IF(Nomina!W60="",0,Nomina!W60) -> 0 | P60: =IF(Nomina!X60="",0,Nomina!X60) -> 0
B61: 56 | C61: =IF(Nomina!B61="",0,Nomina!B61) -> 0 | D61: =IF(Nomina!D61="",0,Nomina!D61) -> 0 | E61: =IF(Nomina!AJ61="",0,Nomina!AJ61) -> 0 | F61: =IF(Nomina!E61="",0,Nomina!E61) -> 0 | G61: =IF(Nomina!F61="",0,Nomina!F61) -> 0 | H61: =IF(Nomina!G61="",0,Nomina!G61) -> 0 | I61: =IF(Nomina!BI61="",0,Nomina!BI61) -> 0 | J61: =IF(Nomina!BC61="",0,Nomina!BC61) -> 0 | K61: =IF(Nomina!Q61="",0,Nomina!Q61) -> 0 | L61: =IF(Nomina!R61="",0,Nomina!R61) -> 0 | M61: =IF(Nomina!R61="",0,Nomina!S61) -> 0 | N61: =IF(Nomina!V61="",0,Nomina!V61) -> 0 | O61: =IF(Nomina!W61="",0,Nomina!W61) -> 0 | P61: =IF(Nomina!X61="",0,Nomina!X61) -> 0
B62: 57 | C62: =IF(Nomina!B62="",0,Nomina!B62) -> 0 | D62: =IF(Nomina!D62="",0,Nomina!D62) -> 0 | E62: =IF(Nomina!AJ62="",0,Nomina!AJ62) -> 0 | F62: =IF(Nomina!E62="",0,Nomina!E62) -> 0 | G62: =IF(Nomina!F62="",0,Nomina!F62) -> 0 | H62: =IF(Nomina!G62="",0,Nomina!G62) -> 0 | I62: =IF(Nomina!BI62="",0,Nomina!BI62) -> 0 | J62: =IF(Nomina!BC62="",0,Nomina!BC62) -> 0 | K62: =IF(Nomina!Q62="",0,Nomina!Q62) -> 0 | L62: =IF(Nomina!R62="",0,Nomina!R62) -> 0 | M62: =IF(Nomina!R62="",0,Nomina!S62) -> 0 | N62: =IF(Nomina!V62="",0,Nomina!V62) -> 0 | O62: =IF(Nomina!W62="",0,Nomina!W62) -> 0 | P62: =IF(Nomina!X62="",0,Nomina!X62) -> 0
B63: 58 | C63: =IF(Nomina!B64="",0,Nomina!B64) -> 0 | D63: =IF(Nomina!D64="",0,Nomina!D64) -> 0 | E63: =IF(Nomina!AJ63="",0,Nomina!AJ63) -> 0 | F63: =IF(Nomina!E63="",0,Nomina!E63) -> 0 | G63: =IF(Nomina!F64="",0,Nomina!F64) -> 0 | H63: =IF(Nomina!G64="",0,Nomina!G64) -> 0 | I63: =IF(Nomina!BI63="",0,Nomina!BI63) -> 0 | J63: =IF(Nomina!BC63="",0,Nomina!BC63) -> 0 | K63: =IF(Nomina!Q64="",0,Nomina!Q64) -> 0 | L63: =IF(Nomina!R64="",0,Nomina!R64) -> 0 | M63: =IF(Nomina!R64="",0,Nomina!S64) -> 0 | N63: =IF(Nomina!V64="",0,Nomina!V64) -> 0 | O63: =IF(Nomina!W64="",0,Nomina!W64) -> 0 | P63: =IF(Nomina!X64="",0,Nomina!X64) -> 0
B64: 59 | C64: =IF(Nomina!B65="",0,Nomina!B65) -> 0 | D64: =IF(Nomina!D65="",0,Nomina!D65) -> 0 | E64: =IF(Nomina!AJ64="",0,Nomina!AJ64) -> 0 | F64: =IF(Nomina!E64="",0,Nomina!E64) -> 0 | G64: =IF(Nomina!F65="",0,Nomina!F65) -> 0 | H64: =IF(Nomina!G65="",0,Nomina!G65) -> 0 | I64: =IF(Nomina!BI64="",0,Nomina!BI64) -> 0 | J64: =IF(Nomina!BC65="",0,Nomina!BC65) -> 0 | K64: =IF(Nomina!Q65="",0,Nomina!Q65) -> 0 | L64: =IF(Nomina!R65="",0,Nomina!R65) -> 0 | M64: =IF(Nomina!R65="",0,Nomina!S65) -> 0 | N64: =IF(Nomina!V65="",0,Nomina!V65) -> 0 | O64: =IF(Nomina!W65="",0,Nomina!W65) -> 0 | P64: =IF(Nomina!X65="",0,Nomina!X65) -> 0
B65: 60 | C65: =IF(Nomina!B66="",0,Nomina!B66) -> 0 | D65: =IF(Nomina!D66="",0,Nomina!D66) -> 0 | E65: =IF(Nomina!AJ65="",0,Nomina!AJ65) -> 0 | F65: =IF(Nomina!E65="",0,Nomina!E65) -> 0 | G65: =IF(Nomina!F66="",0,Nomina!F66) -> 0 | H65: =IF(Nomina!G66="",0,Nomina!G66) -> 0 | I65: =IF(Nomina!BI65="",0,Nomina!BI65) -> 0 | J65: =IF(Nomina!BC66="",0,Nomina!BC66) -> 0
O66: TOTAL | P66: =SUM(P6:P65) -> 4305212
C67: TOTAL | P67: =Nomina!$R$2 -> 4305212
C68: Devengado | E68: Deducido | K68: Aportes y Prestaciones % (Valor)
C69: =BonficacionesOcasionales -> 0 | H69: =Embargo -> 0 | K69: Salud | M69: =Salud -> 359018.75 | O69: Caja de Compensación | Q69: =Caja -> 168950
C70: =T.Salrios -> 3950000 | H70: =ISS -> 337900 | K70: Prima de Servicios | M70: =Prima -> 386771.24 | O70: ICBF | Q70: =Icbf -> 126712.5
C71: =AuxTransporte -> 409940 | H71: =TRetefuente -> 0 | K71: Cesantias | M71: =Cesantias -> 386771.24 | O71: Sena | Q71: =Sena -> 84475
C72: =RNocturno -> 33750 | H72: =Prestamo -> 0 | K72: Int. Sobre Cesantias | M72: =Int -> 3867.7124 | O72: Riesgos Profesionales | Q72: =Arp -> 21963.5
C73: =TComisiones -> 240000 | H73: =AportesSalud -> 0 | K73: Vacaciones | M73: =Vaca -> 176130.38 | O73: Fondo de Pesnsiones | Q73: =Pension -> 506850
C74: =THorasExtras -> 83750 | H74: =AportesPension -> 0 | K74: TOTAL APROPIACIONES | Q74: =SUM(M69:N73,Q69:Q73) -> 2221510.322
C75: =SUM(boni) -> 0 | H75: =AFC -> 0
H76: =AportesCooperativa -> 0 | K76: Percepciones | Q76: =SUM(C69:C75) -> 4717440
K77: Deduciones | Q77: =SUM(H69:I76) -> 337900
C78: Revisado por: | E78: Aprobado Por: | K78: Neto a Pagar | Q78: =Q76-Q77 -> 4379540
K80: =CONVIERTENUMLETRA(P66) -> CUATRO MILLONES TRESCIENTOS CINCO MIL DOSCIENTOS DOCE PESOS 00/100 M.N.
B84: Digitar el auxilio de transporte legal vigente . Actuañlizar la plantilla antes de ingresar los datos. Ver (D- Basicos)

Sheet D-basicos
A2: DATOS BASICOS ACTUALES NOMINA - 2021
A3: SALARIO MINIMO Y AUXILIO DE TRANSPORTE | E3: 1
A4: Salario Minimo= | B4: 908526
A5: Auxilio de Transporte= | B5: 106454
A7: CARGAS PRESTACIONALES | E7: 2
A8: Cesantias= | B8: 0.0833
A9: Prima de Servicios= | B9: 0.0833
A10: Ints/Cesantias= | C10: 0.12
A11: Vacaciones= | B11: 0.0417
A13: SEGURIDAD SOCIAL Y PENSION | E13: 3
B14: Empleado | C14: Empresa
A15: Salud= | B15: 0.04 | C15: 0.085
A16: Pension= | B16: 0.04 | C16: 0.12
A18: FONDO DE SOLIDARIDAD PENSIONAL | E18: 4
A19: Para >= 4 SMMLV | B19: 0.01 | C19: =($B$4*4) -> 3634104 | D19: =($B$4*16) -> 14536416
A20: Entre 16 SMMLV y 17 SMMLV | B20: 0.012 | C20: =($B$4*16) -> 14536416 | D20: =($B$4*17) -> 15444942
A21: Entre 17 SMMLV y 18 SMMLV | B21: 0.014 | C21: =($B$4*17) -> 15444942 | D21: =($B$4*18) -> 16353468
A22: Entre 18 SMMLV y 19 SMMLV | B22: 0.016 | C22: =($B$4*18) -> 16353468 | D22: =($B$4*19) -> 17261994
A23: Entre 19 SMMLV y 20 SMMLV | B23: 0.018 | C23: =($B$4*19) -> 17261994 | D23: =($B$4*20) -> 18170520
A24: Mayor de 20SMMLV | B24: 0.02 | C24: =($B$4*21) -> 19079046
A27: ADMINISTRADORA DE RIESGOS PROFESIONALES | E27: 5
A28: Administradora de Riesgos Profesionales= | C28: 0.0052
A30: Valor UVT para Calcular Retefuente= | C30: 31859
A32: Rangos en UVT | C32: Tarifa Marginal | D32: Puntos adicionales | E32: 6
A33: Desde | B33: Hasta
A34: > 0 | B34: 95 | C34: 0
A35: 95 | B35: 150 | C35: 0.19
A36: 150 | B36: 360 | C36: 0.28 | D36: 10
A37: 360 | B37: En adelante | C37: 0.33 | D37: 69
A39: HORAS EXTRAS Y RECARGOS NOCTURNOS | E39: 7
A40: Recargo Nocturno= | B40: 0.35 | C40: 1.35 | D40: R.N
A41: Hora Extra Diurna= | B41: 0.25 | C41: 1.25 | D41: HED
A42: Hora Extra Nocturna= | B42: 0.75 | C42: 1.75 | D42: HEN
A43: Hora Ordinaria Dominical o Festivo= | B43: 0.75 | C43: 1.75 | D43: HOF
A44: Hora Extra Diurna Dominical o Festivo= | B44: 1 | C44: 2 | D44: HEFD
A45: Hora Extra Nocturna Dominical o Festivo= | B45: 1.5 | C45: 2.5 | D45: HEFN
A46: Recargo Nocturno Dominical o Festivo= | B46: 1.1 | C46: 2.1 | D46: RNF
A48: PAGOS PARAFISCALES | E48: 8
A49: Sena= | B49: 0.02
A50: ICBF= | B50: 0.03
A51: CAJA DE COMPENSACION= | B51: 0.04
A54: OTROS | E54: 9
A55: ESAP= | B55: 0.01
A56: ESCUELAS INDUSTRIALES= | B56: 0.01
A58: IMPUESTO DE RENTA | E58: 10
A59: TARIFA NOMINAL | B59: 0.25
A61: CONTRIBUCIÓN EMPRESARIAL PARA LA EQUIDAD | E61: 11
A62: CREE | B62: 0.09
A64: CONCEPTO | B64: DATOS RETENCION EN LA FUENTE | E64: 12
A65: DEDUCCIONES | B65: Maximo | C65: Porcentaje
A66: Intereses Corrección Monetaria (100 UVT) | B66: 2684000
A67: Salud y Medicina Prepagada (16 UVT) | B67: 429000 | D67: 0.1
A68: Deducción por Dependientes (10% ing y 32 UVT) | B68: 858912 | D68: 0.1
A69: RENTAS EXENTAS
A70: Aportes Obligarorios a Pensión | B70: Ing. Devengados (*) | C70: 0.16 | D70: 0.25
A71: Fondo de Solidaridad | B71: Ing. Devengados (*) | D71: 0.01
A72: Subtotal Rentas Exentas (30% ing, y 316 UVT) | B72: 8500000 | D72: 0.3
A73: Rentas Exentas (Numeral 10 del Articulo 206 de ET) | B73: 6442000 | D73: 0.25
A74: RETENCION MINIMA
A75: Aportes Obligarorios a Salud y Pensiones del Trabajador | D75: 0.08
A76: Empleados Asalariados ( Aplica Retencion >) | B76: 4538914
A77: Pagos por Concepto de Alimentación (>41UVT) | B77: Valores mayores | C77: 1100481
A78: Aportes Obligatorios a Salud Efectuados por el Trabajador el Año Anterior.
A81: RETENCIóN POR SALARIOS 2014
A83: Sin deducción por dependientes | B83: ingreso laboral | C83: 3826000
A84: Con deducción por dependientes | B84: Ingreso Laboral | C84: 4300000
A85: Deducciónes de renta con tabla de retención minima del art. 384 E.T
B86: Ingreso laboral | C86: 3896000

Sheet Hoja1
